Workbook

Sheet Primary
A4: Primary Layout Report Date: | B4: 2017-01-17 | D4: TARGET DELIVERY DATE: JANUARY 17, 2017
A6: This spreadsheet and the accompanying instructions do not constitute, and should not be considered a substitute for, legal advice. The rules governing the proper tax characterization of distributions by mutual funds can be complex. Each fund should consult its own tax advisor regarding the proper tax characterization and reporting of the fund’s distributions. Please note that AMT should be provided in Column 31 as a percentage of Column 30, not an amount.
A10: Please list Securities in Cusip Order (Skip Rows Between Entries)
A11: 1 | B11: 2 | C11: 3 | D11: 4 | E11: =D11+1 -> 5 | F11: =E11+1 -> 6 | G11: 7 | H11: 8 | I11: 9 | J11: 10 | K11: 11 | L11: 12 | M11: 13 | N11: 14 | O11: 15 | P11: 16 | Q11: 17 | R11: 18 | S11: 19 | T11: 20 | U11: 21 | V11: 22 | W11: 23 | X11: 24 | Y11: 25 | Z11: 26 | AA11: 27 | AB11: 28 | AC11: 29 | AD11: 30 | AE11: =AD11+1 -> 31 | AF11: 32
J12: Total | K12: Year Included in Shareholders' Income | O12: Form 1099 Box 1a Breakdown | Q12: Box 1a Total | S12: Form 1099 Box 1b Breakdown | U12: Box 1b Total | V12: Box 2a | W12: Box 2b | X12: Box 2c | Y12: Box 2d | Z12: Box 3 | AA12: Box 6 | AB12: Box 8 | AC12: Box 9 | AF12: CUSIP
A13: Security | J13: Distribution | K13: 2015 | L13: 2017 | M13: 2016 | P13: Foreign | Q13: Ordinary | R13: Qualified | S13: Qualified | T13: Qualified | U13: Qualified | V13: Total Capital | W13: Unrecap | AA13: Foreign | AB13: Cash | AC13: Noncash | AD13: Exempt | AE13: Percentage | AF13: Number
A14: Description | C14: Ticker | D14: Estimated | E14: Reclass | F14: Corrected | G14: Record | H14: Ex-Dividend | I14: Payable | J14: Per Share | K14: (Prior Year) | L14: (Next Year) | M14: (Current Year) | N14: Income | O14: Short-term | P14: Tax | Q14: Dividends | R14: Income | S14: Short-term | T14: Foreign Tax | U14: Dividends | V14: Gain Distr. | W14: Sec. 1250 | X14: Section 1202 | Y14: Collectibles | Z14: Nondividend | AA14: Tax | AB14: Liquidation | AC14: Liquidation | AD14: Interest | AE14: of AMT | AF14: Change
A15: (Fund Name) | B15: CUSIP | C15: Symbol | D15: (E) | E15: (R) | F15: (C) | G15: Date | H15: Date | I15: Date | J15: (11+12+13) | M15: (14+15+22+26+28+30) | N15: Dividends | O15: Capital Gain | P15: Paid | Q15: (14+15+16) | R15: Dividends | S15: Gains | T15: Paid | U15: (18+19+20) | W15: Gain | X15: Gain | Y15: (28%) Gain | Z15: Distributions | AA15: Paid | AB15: Distr | AC15: Distr | AD15: Dividends | AE15: in Column 30 | AF15: (M) or (Y)
A16: Guggenheim Canadian Energy Income ETF | B16: 18383Q606 | C16: ENY | G16: 2016-03-29 | H16: 2016-03-24 | I16: 2016-03-31 | J16: =SUM(K16:M16) -> $0.047700 | K16: 0 | L16: 0 | M16: =ROUND(N16+O16+V16+Z16+AB16+AD16,6) -> $0.047700 | N16: $0.047700 | O16: 0 | P16: $0.006985 | Q16: =SUM(N16:P16) -> $0.054685 | R16: =N16*0.6227 -> $0.029703 | S16: 0 | T16: =P16*0.6227 -> $0.004350 | U16: =SUM(R16:T16) -> $0.034052 | V16: 0 | W16: 0 | X16: 0 | Y16: 0 | Z16: 0 | AA16: $0.006985 | AB16: 0 | AC16: 0 | AD16: 0 | AE16: 0
A17: Guggenheim Canadian Energy Income ETF | B17: 18383Q606 | C17: ENY | G17: 2016-06-28 | H17: 2016-06-24 | I17: 2016-06-30 | J17: =SUM(K17:M17) -> $0.069300 | K17: 0 | L17: 0 | M17: =ROUND(N17+O17+V17+Z17+AB17+AD17,6) -> $0.069300 | N17: $0.069300 | O17: 0 | P17: $0.010148 | Q17: =SUM(N17:P17) -> $0.079448 | R17: =N17*0.6907 -> $0.047866 | S17: 0 | T17: =P17*0.6907 -> $0.007009 | U17: =SUM(R17:T17) -> $0.054875 | V17: 0 | W17: 0 | X17: 0 | Y17: 0 | Z17: 0 | AA17: $0.010148 | AB17: 0 | AC17: 0 | AD17: 0 | AE17: 0
A18: Guggenheim Canadian Energy Income ETF | B18: 18383Q606 | C18: ENY | G18: 2016-09-28 | H18: 2016-09-26 | I18: 2016-09-30 | J18: =SUM(K18:M18) -> $0.065800 | K18: 0 | L18: 0 | M18: =ROUND(N18+O18+V18+Z18+AB18+AD18,6) -> $0.065800 | N18: $0.065800 | O18: 0 | P18: $0.009635 | Q18: =SUM(N18:P18) -> $0.075435 | R18: =N18*0.6907 -> $0.045448 | S18: 0 | T18: =P18*0.6907 -> $0.006655 | U18: =SUM(R18:T18) -> $0.052103 | V18: 0 | W18: 0 | X18: 0 | Y18: 0 | Z18: 0 | AA18: $0.009635 | AB18: 0 | AC18: 0 | AD18: 0 | AE18: 0
A19: Guggenheim Canadian Energy Income ETF | B19: 18383Q606 | C19: ENY | G19: 2016-12-28 | H19: 2016-12-23 | I19: 2016-12-30 | J19: =SUM(K19:M19) -> $0.074200 | K19: 0 | L19: 0 | M19: =ROUND(N19+O19+V19+Z19+AB19+AD19,6) -> $0.074200 | N19: $0.074200 | O19: 0 | P19: $0.010865 | Q19: =SUM(N19:P19) -> $0.085065 | R19: =N19*0.6907 -> $0.051250 | S19: 0 | T19: =P19*0.6907 -> $0.007504 | U19: =SUM(R19:T19) -> $0.058754 | V19: 0 | W19: 0 | X19: 0 | Y19: 0 | Z19: 0 | AA19: $0.010865 | AB19: 0 | AC19: 0 | AD19: 0 | AE19: 0
A20: Totals | J20: =SUM(J16:J19) -> $0.257000 | K20: =SUM(K16:K19) -> 0 | L20: 0 | M20: $0.257000 | N20: =SUM(N16:N19) -> $0.257000 | O20: 0 | P20: $0.037633 | Q20: =SUM(Q16:Q19) -> $0.294633 | R20: $0.174266 | S20: 0 | T20: $0.025518 | U20: =SUM(U16:U19) -> $0.199784 | V20: 0 | W20: 0 | X20: 0 | Y20: 0 | Z20: 0 | AA20: $0.037633 | AB20: 0 | AC20: 0 | AD20: 0 | AE20: 0
A22: Guggenheim Shipping ETF | B22: 18383Q796 | C22: SEA | G22: 2016-03-29 | H22: 2016-03-24 | I22: 2016-03-31 | J22: =SUM(K22:M22) -> $0.119500 | K22: 0 | L22: 0 | M22: =ROUND(N22+O22+V22+Z22+AB22+AD22,6) -> $0.119500 | N22: $0.119500 | O22: 0 | P22: $0.000531 | Q22: =SUM(N22:P22) -> $0.120031 | R22: =N22*0.4189 -> $0.050059 | S22: 0 | T22: =P22*0.4189 -> $0.000222 | U22: =SUM(R22:T22) -> $0.050281 | V22: 0 | W22: 0 | X22: 0 | Y22: 0 | Z22: 0 | AA22: $0.000531 | AB22: 0 | AC22: 0 | AD22: 0 | AE22: 0
A23: Guggenheim Shipping ETF | B23: 18383Q796 | C23: SEA | G23: 2016-06-28 | H23: 2016-06-24 | I23: 2016-06-30 | J23: =SUM(K23:M23) -> $0.350300 | K23: 0 | L23: 0 | M23: =ROUND(N23+O23+V23+Z23+AB23+AD23,6) -> $0.350300 | N23: $0.350300 | O23: 0 | P23: $0.001557 | Q23: =SUM(N23:P23) -> $0.351857 | R23: =N23*0.2976 -> $0.104249 | S23: 0 | T23: =P23*0.2976 -> $0.000463 | U23: =SUM(R23:T23) -> $0.104713 | V23: 0 | W23: 0 | X23: 0 | Y23: 0 | Z23: 0 | AA23: $0.001557 | AB23: 0 | AC23: 0 | AD23: 0 | AE23: 0
A24: Guggenheim Shipping ETF | B24: 18383Q796 | C24: SEA | G24: 2016-09-28 | H24: 2016-09-26 | I24: 2016-09-30 | J24: =SUM(K24:M24) -> $0.160300 | K24: 0 | L24: 0 | M24: =ROUND(N24+O24+V24+Z24+AB24+AD24,6) -> $0.160300 | N24: $0.160300 | O24: 0 | P24: $0.000713 | Q24: =SUM(N24:P24) -> $0.161013 | R24: =N24*0.2976 -> $0.047705 | S24: 0 | T24: =P24*0.2976 -> $0.000212 | U24: =SUM(R24:T24) -> $0.047917 | V24: 0 | W24: 0 | X24: 0 | Y24: 0 | Z24: 0 | AA24: $0.000713 | AB24: 0 | AC24: 0 | AD24: 0 | AE24: 0
A25: Guggenheim Shipping ETF | B25: 18383Q796 | C25: SEA | G25: 2016-12-28 | H25: 2016-12-23 | I25: 2016-12-30 | J25: =SUM(K25:M25) -> $0.105900 | K25: 0 | L25: 0 | M25: =ROUND(N25+O25+V25+Z25+AB25+AD25,6) -> $0.105900 | N25: $0.105900 | O25: 0 | P25: $0.000471 | Q25: =SUM(N25:P25) -> $0.106371 | R25: =N25*0.2976 -> $0.031516 | S25: 0 | T25: =P25*0.2976 -> $0.000140 | U25: =SUM(R25:T25) -> $0.031656 | V25: 0 | W25: 0 | X25: 0 | Y25: 0 | Z25: 0 | AA25: $0.000471 | AB25: 0 | AC25: 0 | AD25: 0 | AE25: 0
A26: Totals | J26: =SUM(J22:J25) -> $0.736000 | K26: =SUM(K22:K25) -> 0 | L26: 0 | M26: $0.736000 | N26: =SUM(N22:N25) -> $0.736000 | O26: 0 | P26: $0.003272 | Q26: =SUM(Q22:Q25) -> $0.739272 | R26: $0.233529 | S26: =SUM(S22:S25) -> 0 | T26: $0.001038 | U26: =SUM(U22:U25) -> $0.234567 | V26: 0 | W26: 0 | X26: 0 | Y26: 0 | Z26: 0 | AA26: $0.003272 | AB26: =SUM(AB22:AB25) -> 0 | AC26: 0 | AD26: 0 | AE26: 0
A28: Guggenheim International Multi-Asset Income ETF | B28: 18383Q804 | C28: HGI | G28: 2016-03-29 | H28: 2016-03-24 | I28: 2016-03-31 | J28: =SUM(K28:M28) -> $0.126300 | K28: 0 | L28: 0 | M28: =ROUND(N28+O28+V28+Z28+AB28+AD28,6) -> $0.126300 | N28: $0.126300 | O28: 0 | P28: $0.010353 | Q28: =SUM(N28:P28) -> $0.136653 | R28: =N28*0.8309 -> $0.104943 | S28: 0 | T28: =+P28*0.8309 -> $0.008602 | U28: =SUM(R28:T28) -> $0.113545 | V28: 0 | W28: 0 | X28: 0 | Y28: 0 | Z28: 0 | AA28: $0.010353 | AB28: 0 | AC28: 0 | AD28: 0 | AE28: 0
A29: Guggenheim International Multi-Asset Income ETF | B29: 18383Q804 | C29: HGI | G29: 2016-06-28 | H29: 2016-06-24 | I29: 2016-06-30 | J29: =SUM(K29:M29) -> $0.128900 | K29: 0 | L29: 0 | M29: =ROUND(N29+O29+V29+Z29+AB29+AD29,6) -> $0.128900 | N29: $0.128900 | O29: 0 | P29: $0.010566 | Q29: =SUM(N29:P29) -> $0.139466 | R29: =N29*0.7148 -> $0.092138 | S29: 0 | T29: =+P29*0.7148 -> $0.007553 | U29: =SUM(R29:T29) -> $0.099690 | V29: 0 | W29: 0 | X29: 0 | Y29: 0 | Z29: 0 | AA29: $0.010566 | AB29: 0 | AC29: 0 | AD29: 0 | AE29: 0
A30: Guggenheim International Multi-Asset Income ETF | B30: 18383Q804 | C30: HGI | G30: 2016-09-28 | H30: 2016-09-26 | I30: 2016-09-30 | J30: =SUM(K30:M30) -> $0.139000 | K30: 0 | L30: 0 | M30: =ROUND(N30+O30+V30+Z30+AB30+AD30,6) -> $0.139000 | N30: $0.139000 | O30: 0 | P30: $0.011394 | Q30: =SUM(N30:P30) -> $0.150394 | R30: =N30*0.7148 -> $0.099357 | S30: 0 | T30: =+P30*0.7148 -> $0.008144 | U30: =SUM(R30:T30) -> $0.107502 | V30: 0 | W30: 0 | X30: 0 | Y30: 0 | Z30: 0 | AA30: $0.011394 | AB30: 0 | AC30: 0 | AD30: 0 | AE30: 0
A31: Guggenheim International Multi-Asset Income ETF | B31: 18383Q804 | C31: HGI | G31: 2016-12-28 | H31: 2016-12-23 | I31: 2016-12-30 | J31: =SUM(K31:M31) -> $0.138000 | K31: 0 | L31: 0 | M31: =ROUND(N31+O31+V31+Z31+AB31+AD31,6) -> $0.138000 | N31: $0.138000 | O31: 0 | P31: $0.011312 | Q31: =SUM(N31:P31) -> $0.149312 | R31: =N31*0.7148 -> $0.098642 | S31: 0 | T31: =+P31*0.7148 -> $0.008086 | U31: =SUM(R31:T31) -> $0.106728 | V31: 0 | W31: 0 | X31: 0 | Y31: 0 | Z31: 0 | AA31: $0.011312 | AB31: 0 | AC31: 0 | AD31: 0 | AE31: 0
A32: Totals | J32: =SUM(J28:J31) -> $0.532200 | K32: =SUM(K28:K31) -> 0 | L32: 0 | M32: $0.532200 | N32: =SUM(N28:N31) -> $0.532200 | O32: 0 | P32: $0.043625 | Q32: =SUM(Q28:Q31) -> $0.575825 | R32: $0.395080 | S32: =ROUND(SUM(S28:S31),6) -> 0 | T32: $0.032385 | U32: =SUM(U28:U31) -> $0.427465 | V32: 0 | W32: 0 | X32: 0 | Y32: 0 | Z32: 0 | AA32: $0.043625 | AB32: =SUM(AB28:AB31) -> 0 | AC32: 0 | AD32: 0 | AE32: 0
A34: Guggenheim Frontier Markets ETF | B34: 18383Q838 | C34: FRN | G34: 2016-12-28 | H34: 2016-12-23 | I34: 2016-12-30 | J34: =SUM(K34:M34) -> $0.470200 | K34: 0 | L34: 0 | M34: =ROUND(N34+O34+V34+Z34+AB34+AD34,6) -> $0.470200 | N34: $0.470200 | O34: 0 | P34: $0.053066 | Q34: =SUM(N34:P34) -> $0.523266 | R34: =N34*0.4497 -> $0.211449 | S34: 0 | T34: =+P34*0.4497 -> $0.023864 | U34: =SUM(R34:T34) -> $0.235313 | V34: 0 | W34: 0 | X34: 0 | Y34: 0 | Z34: 0 | AA34: $0.053066 | AB34: 0 | AC34: 0 | AD34: 0 | AE34: 0
A35: Totals | J35: =SUM(J34) -> $0.470200 | K35: =SUM(K34) -> 0 | L35: 0 | M35: $0.470200 | N35: =SUM(N34) -> $0.470200 | O35: 0 | P35: $0.053066 | Q35: $0.523266 | R35: $0.211449 | S35: 0 | T35: $0.023864 | U35: =SUM(U34) -> $0.235313 | V35: 0 | W35: 0 | X35: 0 | Y35: 0 | Z35: 0 | AA35: $0.053066 | AB35: =SUM(AB34) -> 0 | AC35: 0 | AD35: 0 | AE35: 0
A37: Guggenheim China Small Cap ETF | B37: 18383Q853 | C37: HAO | G37: 2016-12-28 | H37: 2016-12-23 | I37: 2016-12-30 | J37: =SUM(K37:M37) -> $0.755300 | K37: 0 | L37: 0 | M37: =ROUND(N37+O37+V37+Z37+AB37+AD37,6) -> $0.755300 | N37: $0.755300 | O37: 0 | P37: $0.041075 | Q37: =SUM(N37:P37) -> $0.796375 | R37: =N37*0.2534 -> $0.191393 | S37: 0 | T37: =+P37*0.2534 -> $0.010408 | U37: =SUM(R37:T37) -> $0.201801 | V37: 0 | W37: 0 | X37: 0 | Y37: 0 | Z37: 0 | AA37: $0.041075 | AB37: 0 | AC37: 0 | AD37: 0 | AE37: 0
A38: Totals | J38: =SUM(J37) -> $0.755300 | K38: =SUM(K37) -> 0 | L38: 0 | M38: $0.755300 | N38: =SUM(N37) -> $0.755300 | O38: 0 | P38: $0.041075 | Q38: $0.796375 | R38: $0.191393 | S38: 0 | T38: $0.010408 | U38: =SUM(U37) -> $0.201801 | V38: 0 | W38: 0 | X38: 0 | Y38: 0 | Z38: 0 | AA38: $0.041075 | AB38: =SUM(AB37) -> 0 | AC38: 0 | AD38: 0 | AE38: 0
A40: Guggenheim China Real Estate ETF | B40: 18383Q861 | C40: TAO | G40: 2016-12-28 | H40: 2016-12-23 | I40: 2016-12-30 | J40: =SUM(K40:M40) -> $0.402700 | K40: 0 | L40: 0 | M40: =ROUND(N40+O40+V40+Z40+AB40+AD40,6) -> $0.402700 | N40: $0.402700 | O40: 0 | P40: $0.001617 | Q40: =SUM(N40:P40) -> $0.404317 | R40: =N40*0.0595 -> $0.023961 | S40: 0 | T40: =+P40*0.0595 -> $0.000096 | U40: =SUM(R40:T40) -> $0.024057 | V40: 0 | W40: 0 | X40: 0 | Y40: 0 | Z40: 0 | AA40: $0.001617 | AB40: 0 | AC40: 0 | AD40: 0 | AE40: 0
A41: Totals | J41: =SUM(J40) -> $0.402700 | K41: =SUM(K40) -> 0 | L41: 0 | M41: $0.402700 | N41: =SUM(N40) -> $0.402700 | O41: 0 | P41: $0.001617 | Q41: $0.404317 | R41: $0.023961 | S41: 0 | T41: $0.000096 | U41: =SUM(U40) -> $0.024057 | V41: 0 | W41: 0 | X41: 0 | Y41: 0 | Z41: 0 | AA41: $0.001617 | AB41: =SUM(AB40) -> 0 | AC41: 0 | AD41: 0 | AE41: 0
A43: Guggenheim MSCI Global Timber ETF | B43: 18383Q879 | C43: CUT | G43: 2016-12-28 | H43: 2016-12-23 | I43: 2016-12-30 | J43: =SUM(K43:M43) -> $0.515200 | K43: 0 | L43: 0 | M43: =ROUND(N43+O43+V43+Z43+AB43+AD43,6) -> $0.515200 | N43: $0.515200 | O43: 0 | P43: $0.029075 | Q43: =SUM(N43:P43) -> $0.544275 | R43: =N43*0.9975 -> $0.513912 | S43: 0 | T43: =+P43*0.9975 -> $0.029002 | U43: =SUM(R43:T43) -> $0.542914 | V43: 0 | W43: 0 | X43: 0 | Y43: 0 | Z43: 0 | AA43: $0.029075 | AB43: 0 | AC43: 0 | AD43: 0 | AE43: 0
A44: Totals | J44: =SUM(J43) -> $0.515200 | K44: =SUM(K43) -> 0 | L44: 0 | M44: $0.515200 | N44: $0.515200 | O44: 0 | P44: $0.029075 | Q44: $0.544275 | R44: $0.513912 | S44: 0 | T44: $0.029002 | U44: =SUM(U43) -> $0.542914 | V44: 0 | W44: 0 | X44: 0 | Y44: 0 | Z44: 0 | AA44: $0.029075 | AB44: =SUM(AB43) -> 0 | AC44: 0 | AD44: 0 | AE44: 0
A48: Guggenheim BulletShares 2022 High Yield Corporate Bond ETF | B48: 18383M217 | C48: BSJM | G48: 2016-02-03 | H48: 2016-02-01 | I48: 2016-02-05 | J48: =ROUND(K48+L48+M48,6) -> $0.097500 | K48: 0 | L48: 0 | M48: =ROUND(N48+O48+V48+Z48+AB48+AD48,6) -> $0.097500 | N48: $0.097500 | O48: 0 | P48: 0 | Q48: =SUM(N48:P48) -> $0.097500 | R48: 0 | S48: 0 | T48: 0 | U48: =SUM(R48:T48) -> 0 | V48: 0 | W48: 0 | X48: 0 | Y48: 0 | Z48: 0 | AA48: 0 | AB48: 0 | AC48: 0 | AD48: 0 | AE48: 0.0%
A49: Guggenheim BulletShares 2022 High Yield Corporate Bond ETF | B49: 18383M217 | C49: BSJM | G49: 2016-03-03 | H49: 2016-03-01 | I49: 2016-03-07 | J49: =ROUND(K49+L49+M49,6) -> $0.097100 | K49: 0 | L49: 0 | M49: =ROUND(N49+O49+V49+Z49+AB49+AD49,6) -> $0.097100 | N49: $0.097100 | O49: 0 | P49: 0 | Q49: =SUM(N49:P49) -> $0.097100 | R49: 0 | S49: 0 | T49: 0 | U49: =SUM(R49:T49) -> 0 | V49: 0 | W49: 0 | X49: 0 | Y49: 0 | Z49: 0 | AA49: 0 | AB49: 0 | AC49: 0 | AD49: 0 | AE49: 0.0%
A50: Guggenheim BulletShares 2022 High Yield Corporate Bond ETF | B50: 18383M217 | C50: BSJM | G50: 2016-04-05 | H50: 2016-04-01 | I50: 2016-04-07 | J50: $0.104500 | K50: 0 | L50: 0 | M50: $0.104500 | N50: $0.104500 | O50: 0 | P50: 0 | Q50: =SUM(N50:P50) -> $0.104500 | R50: 0 | S50: 0 | T50: 0 | U50: =SUM(R50:T50) -> 0 | V50: 0 | W50: 0 | X50: 0 | Y50: 0 | Z50: 0 | AA50: 0 | AB50: 0 | AC50: 0 | AD50: 0 | AE50: 0.0%
A51: Guggenheim BulletShares 2022 High Yield Corporate Bond ETF | B51: 18383M217 | C51: BSJM | G51: 2016-05-04 | H51: 2016-05-02 | I51: 2016-05-06 | J51: $0.100200 | K51: 0 | L51: 0 | M51: $0.100200 | N51: $0.100200 | O51: 0 | P51: 0 | Q51: =SUM(N51:P51) -> $0.100200 | R51: 0 | S51: 0 | T51: 0 | U51: =SUM(R51:T51) -> 0 | V51: 0 | W51: 0 | X51: 0 | Y51: 0 | Z51: 0 | AA51: 0 | AB51: 0 | AC51: 0 | AD51: 0 | AE51: 0.0%
A52: Guggenheim BulletShares 2022 High Yield Corporate Bond ETF | B52: 18383M217 | C52: BSJM | G52: 2016-06-03 | H52: 2016-06-01 | I52: 2016-06-07 | J52: $0.114600 | K52: 0 | L52: 0 | M52: $0.114600 | N52: $0.114600 | O52: 0 | P52: 0 | Q52: $0.114600 | R52: 0 | S52: 0 | T52: 0 | U52: 0 | V52: 0 | W52: 0 | X52: 0 | Y52: 0 | Z52: 0 | AA52: 0 | AB52: 0 | AC52: 0 | AD52: 0 | AE52: 0.0%
A53: Guggenheim BulletShares 2022 High Yield Corporate Bond ETF | B53: 18383M217 | C53: BSJM | G53: 2016-07-06 | H53: 2016-07-01 | I53: 2016-07-08 | J53: $0.101700 | K53: 0 | L53: 0 | M53: $0.101700 | N53: $0.101700 | O53: 0 | P53: 0 | Q53: $0.101700 | R53: 0 | S53: 0 | T53: 0 | U53: 0 | V53: 0 | W53: 0 | X53: 0 | Y53: 0 | Z53: 0 | AA53: 0 | AB53: 0 | AC53: 0 | AD53: 0 | AE53: 0.0%
A54: Guggenheim BulletShares 2022 High Yield Corporate Bond ETF | B54: 18383M217 | C54: BSJM | G54: 2016-08-03 | H54: 2016-08-01 | I54: 2016-08-05 | J54: $0.101300 | K54: 0 | L54: 0 | M54: $0.101300 | N54: $0.101300 | O54: 0 | P54: 0 | Q54: $0.101300 | R54: 0 | S54: 0 | T54: 0 | U54: 0 | V54: 0 | W54: 0 | X54: 0 | Y54: 0 | Z54: 0 | AA54: 0 | AB54: 0 | AC54: 0 | AD54: 0 | AE54: 0.0%
A55: Guggenheim BulletShares 2022 High Yield Corporate Bond ETF | B55: 18383M217 | C55: BSJM | G55: 2016-09-06 | H55: 2016-09-01 | I55: 2016-09-08 | J55: $0.118700 | K55: 0 | L55: 0 | M55: $0.118700 | N55: $0.118700 | O55: 0 | P55: 0 | Q55: $0.118700 | R55: 0 | S55: 0 | T55: 0 | U55: 0 | V55: 0 | W55: 0 | X55: 0 | Y55: 0 | Z55: 0 | AA55: 0 | AB55: 0 | AC55: 0 | AD55: 0 | AE55: 0.0%
A56: Guggenheim BulletShares 2022 High Yield Corporate Bond ETF | B56: 18383M217 | C56: BSJM | G56: 2016-10-05 | H56: 2016-10-03 | I56: 2016-10-07 | J56: $0.116600 | K56: 0 | L56: 0 | M56: $0.116600 | N56: $0.116600 | O56: 0 | P56: 0 | Q56: $0.116600 | R56: 0 | S56: 0 | T56: 0 | U56: 0 | V56: 0 | W56: 0 | X56: 0 | Y56: 0 | Z56: 0 | AA56: 0 | AB56: 0 | AC56: 0 | AD56: 0 | AE56: 0.0%
A57: Guggenheim BulletShares 2022 High Yield Corporate Bond ETF | B57: 18383M217 | C57: BSJM | G57: 2016-11-03 | H57: 2016-11-01 | I57: 2016-11-07 | J57: $0.106000 | K57: 0 | L57: 0 | M57: $0.106000 | N57: $0.106000 | O57: 0 | P57: 0 | Q57: $0.106000 | R57: 0 | S57: 0 | T57: 0 | U57: 0 | V57: 0 | W57: 0 | X57: 0 | Y57: 0 | Z57: 0 | AA57: 0 | AB57: 0 | AC57: 0 | AD57: 0 | AE57: 0.0%
A58: Guggenheim BulletShares 2022 High Yield Corporate Bond ETF | B58: 18383M217 | C58: BSJM | G58: 2016-12-05 | H58: 2016-12-01 | I58: 2016-12-07 | J58: $0.091900 | K58: 0 | L58: 0 | M58: $0.091900 | N58: $0.091900 | O58: 0 | P58: 0 | Q58: $0.091900 | R58: 0 | S58: 0 | T58: 0 | U58: 0 | V58: 0 | W58: 0 | X58: 0 | Y58: 0 | Z58: 0 | AA58: 0 | AB58: 0 | AC58: 0 | AD58: 0 | AE58: 0.0%
A59: Guggenheim BulletShares 2022 High Yield Corporate Bond ETF | B59: 18383M217 | C59: BSJM | G59: 2016-12-30 | H59: 2016-12-28 | I59: 2017-01-04 | J59: $0.098500 | K59: 0 | L59: 0 | M59: =ROUND(N59+O59+V59+Z59+AB59+AD59,6) -> $0.098500 | N59: $0.098500 | O59: 0 | P59: 0 | Q59: $0.098500 | R59: 0 | S59: 0 | T59: 0 | U59: 0 | V59: 0 | W59: 0 | X59: 0 | Y59: 0 | Z59: 0 | AA59: 0 | AB59: 0 | AC59: 0 | AD59: 0 | AE59: 0.0%
A60: Totals | K60: =SUM(K48:K59) -> 0 | L60: =SUM(L48:L59) -> 0 | M60: =SUM(M48:M59) -> $1.248600 | Q60: =SUM(Q48:Q59) -> $1.248600 | R60: =SUM(R48:R59) -> 0 | S60: =SUM(S48:S59) -> 0 | T60: =SUM(T48:T59) -> 0 | U60: =SUM(U48:U59) -> 0 | V60: 0 | W60: 0 | X60: 0 | Y60: 0 | Z60: 0 | AA60: 0 | AB60: 0 | AC60: 0 | AD60: =SUM(AD48:AD59) -> 0 | AE60: =SUM(AE48:AE59) -> 0.0%
A62: Guggenheim BulletShares 2021 High Yield Corporate Bond ETF | B62: 18383M225 | C62: BSJL | G62: 2016-02-03 | H62: 2016-02-01 | I62: 2016-02-05 | J62: =ROUND(K62+L62+M62,6) -> $0.099500 | K62: 0 | L62: 0 | M62: =ROUND(N62+O62+V62+Z62+AB62+AD62,6) -> $0.099500 | N62: $0.099500 | O62: 0 | P62: 0 | Q62: =SUM(N62:P62) -> $0.099500 | R62: 0 | S62: 0 | T62: 0 | U62: =SUM(R62:T62) -> 0 | V62: 0 | W62: 0 | X62: 0 | Y62: 0 | Z62: 0 | AA62: 0 | AB62: 0 | AC62: 0 | AD62: 0 | AE62: 0.0%
A63: Guggenheim BulletShares 2021 High Yield Corporate Bond ETF | B63: 18383M225 | C63: BSJL | G63: 2016-03-03 | H63: 2016-03-01 | I63: 2016-03-07 | J63: =ROUND(K63+L63+M63,6) -> $0.109100 | K63: 0 | L63: 0 | M63: =ROUND(N63+O63+V63+Z63+AB63+AD63,6) -> $0.109100 | N63: $0.109100 | O63: 0 | P63: 0 | Q63: =SUM(N63:P63) -> $0.109100 | R63: 0 | S63: 0 | T63: 0 | U63: =SUM(R63:T63) -> 0 | V63: 0 | W63: 0 | X63: 0 | Y63: 0 | Z63: 0 | AA63: 0 | AB63: 0 | AC63: 0 | AD63: 0 | AE63: 0.0%
A64: Guggenheim BulletShares 2021 High Yield Corporate Bond ETF | B64: 18383M225 | C64: BSJL | G64: 2016-04-05 | H64: 2016-04-01 | I64: 2016-04-07 | J64: $0.101300 | K64: 0 | L64: 0 | M64: $0.101300 | N64: $0.101300 | O64: 0 | P64: 0 | Q64: $0.101300 | R64: 0 | S64: 0 | T64: 0 | U64: 0 | V64: 0 | W64: 0 | X64: 0 | Y64: 0 | Z64: 0 | AA64: 0 | AB64: 0 | AC64: 0 | AD64: 0 | AE64: 0.0%
A65: Guggenheim BulletShares 2021 High Yield Corporate Bond ETF | B65: 18383M225 | C65: BSJL | G65: 2016-05-04 | H65: 2016-05-02 | I65: 2016-05-06 | J65: $0.092200 | K65: 0 | L65: 0 | M65: $0.092200 | N65: $0.092200 | O65: 0 | P65: 0 | Q65: $0.092200 | R65: 0 | S65: 0 | T65: 0 | U65: 0 | V65: 0 | W65: 0 | X65: 0 | Y65: 0 | Z65: 0 | AA65: 0 | AB65: 0 | AC65: 0 | AD65: 0 | AE65: 0.0%
A66: Guggenheim BulletShares 2021 High Yield Corporate Bond ETF | B66: 18383M225 | C66: BSJL | G66: 2016-06-03 | H66: 2016-06-01 | I66: 2016-06-07 | J66: $0.108100 | K66: 0 | L66: 0 | M66: $0.108100 | N66: $0.108100 | O66: 0 | P66: 0 | Q66: $0.108100 | R66: 0 | S66: 0 | T66: 0 | U66: 0 | V66: 0 | W66: 0 | X66: 0 | Y66: 0 | Z66: 0 | AA66: 0 | AB66: 0 | AC66: 0 | AD66: 0 | AE66: 0.0%
A67: Guggenheim BulletShares 2021 High Yield Corporate Bond ETF | B67: 18383M225 | C67: BSJL | G67: 2016-07-06 | H67: 2016-07-01 | I67: 2016-07-08 | J67: $0.108100 | K67: 0 | L67: 0 | M67: $0.108100 | N67: $0.108100 | O67: 0 | P67: 0 | Q67: $0.108100 | R67: 0 | S67: 0 | T67: 0 | U67: 0 | V67: 0 | W67: 0 | X67: 0 | Y67: 0 | Z67: 0 | AA67: 0 | AB67: 0 | AC67: 0 | AD67: 0 | AE67: 0.0%
A68: Guggenheim BulletShares 2021 High Yield Corporate Bond ETF | B68: 18383M225 | C68: BSJL | G68: 2016-08-03 | H68: 2016-08-01 | I68: 2016-08-05 | J68: $0.098800 | K68: 0 | L68: 0 | M68: $0.098800 | N68: $0.098800 | O68: 0 | P68: 0 | Q68: $0.098800 | R68: 0 | S68: 0 | T68: 0 | U68: 0 | V68: 0 | W68: 0 | X68: 0 | Y68: 0 | Z68: 0 | AA68: 0 | AB68: 0 | AC68: 0 | AD68: 0 | AE68: 0.0%
A69: Guggenheim BulletShares 2021 High Yield Corporate Bond ETF | B69: 18383M225 | C69: BSJL | G69: 2016-09-06 | H69: 2016-09-01 | I69: 2016-09-08 | J69: $0.114300 | K69: 0 | L69: 0 | M69: $0.114300 | N69: $0.114300 | O69: 0 | P69: 0 | Q69: $0.114300 | R69: 0 | S69: 0 | T69: 0 | U69: 0 | V69: 0 | W69: 0 | X69: 0 | Y69: 0 | Z69: 0 | AA69: 0 | AB69: 0 | AC69: 0 | AD69: 0 | AE69: 0.0%
A70: Guggenheim BulletShares 2021 High Yield Corporate Bond ETF | B70: 18383M225 | C70: BSJL | G70: 2016-10-05 | H70: 2016-10-03 | I70: 2016-10-07 | J70: $0.101500 | K70: 0 | L70: 0 | M70: $0.101500 | N70: $0.101500 | O70: 0 | P70: 0 | Q70: $0.101500 | R70: 0 | S70: 0 | T70: 0 | U70: 0 | V70: 0 | W70: 0 | X70: 0 | Y70: 0 | Z70: 0 | AA70: 0 | AB70: 0 | AC70: 0 | AD70: 0 | AE70: 0.0%
A71: Guggenheim BulletShares 2021 High Yield Corporate Bond ETF | B71: 18383M225 | C71: BSJL | G71: 2016-11-03 | H71: 2016-11-01 | I71: 2016-11-07 | J71: $0.102100 | K71: 0 | L71: 0 | M71: $0.102100 | N71: $0.102100 | O71: 0 | P71: 0 | Q71: $0.102100 | R71: 0 | S71: 0 | T71: 0 | U71: 0 | V71: 0 | W71: 0 | X71: 0 | Y71: 0 | Z71: 0 | AA71: 0 | AB71: 0 | AC71: 0 | AD71: 0 | AE71: 0.0%
A72: Guggenheim BulletShares 2021 High Yield Corporate Bond ETF | B72: 18383M225 | C72: BSJL | G72: 2016-12-05 | H72: 2016-12-01 | I72: 2016-12-07 | J72: $0.117100 | K72: 0 | L72: 0 | M72: $0.117100 | N72: $0.117100 | O72: 0 | P72: 0 | Q72: $0.117100 | R72: 0 | S72: 0 | T72: 0 | U72: 0 | V72: 0 | W72: 0 | X72: 0 | Y72: 0 | Z72: 0 | AA72: 0 | AB72: 0 | AC72: 0 | AD72: 0 | AE72: 0.0%
A73: Guggenheim BulletShares 2021 High Yield Corporate Bond ETF | B73: 18383M225 | C73: BSJL | G73: 2016-12-30 | H73: 2016-12-28 | I73: 2017-01-04 | J73: $0.117800 | K73: 0 | L73: 0 | M73: =ROUND(N73+O73+V73+Z73+AB73+AD73,6) -> $0.117800 | N73: $0.117800 | O73: 0 | P73: 0 | Q73: $0.117800 | R73: 0 | S73: 0 | T73: 0 | U73: 0 | V73: 0 | W73: 0 | X73: 0 | Y73: 0 | Z73: 0 | AA73: 0 | AB73: 0 | AC73: 0 | AD73: 0 | AE73: 0.0%
A74: Totals | K74: =SUM(K62:K73) -> 0 | L74: =SUM(L62:L73) -> 0 | M74: =SUM(M62:M73) -> $1.269900 | Q74: =SUM(Q62:Q73) -> $1.269900 | R74: 0 | S74: 0 | T74: 0 | U74: 0 | V74: 0 | W74: 0 | X74: 0 | Y74: 0 | Z74: 0 | AA74: 0 | AB74: 0 | AC74: 0 | AD74: 0 | AE74: 0.0%
A76: Guggenheim BulletShares 2020 High Yield Corporate Bond ETF | B76: 18383M365 | C76: BSJK | G76: 2016-02-03 | H76: 2016-02-01 | I76: 2016-02-05 | J76: =ROUND(K76+L76+M76,6) -> $0.093600 | K76: 0 | L76: 0 | M76: =ROUND(N76+O76+V76+Z76+AB76+AD76,6) -> $0.093600 | N76: $0.093600 | O76: 0 | P76: 0 | Q76: =SUM(N76:P76) -> $0.093600 | R76: 0 | S76: 0 | T76: 0 | U76: =SUM(R76:T76) -> 0 | V76: 0 | W76: 0 | X76: 0 | Y76: 0 | Z76: 0 | AA76: 0 | AB76: 0 | AC76: 0 | AD76: 0 | AE76: 0.0%
A77: Guggenheim BulletShares 2020 High Yield Corporate Bond ETF | B77: 18383M365 | C77: BSJK | G77: 2016-03-03 | H77: 2016-03-01 | I77: 2016-03-07 | J77: =ROUND(K77+L77+M77,6) -> $0.106500 | K77: 0 | L77: 0 | M77: =ROUND(N77+O77+V77+Z77+AB77+AD77,6) -> $0.106500 | N77: $0.106500 | O77: 0 | P77: 0 | Q77: =SUM(N77:P77) -> $0.106500 | R77: 0 | S77: 0 | T77: 0 | U77: =SUM(R77:T77) -> 0 | V77: 0 | W77: 0 | X77: 0 | Y77: 0 | Z77: 0 | AA77: 0 | AB77: 0 | AC77: 0 | AD77: 0 | AE77: 0.0%
A78: Guggenheim BulletShares 2020 High Yield Corporate Bond ETF | B78: 18383M365 | C78: BSJK | G78: 2016-04-05 | H78: 2016-04-01 | I78: 2016-04-07 | J78: $0.095300 | K78: 0 | L78: 0 | M78: =ROUND(N78+O78+V78+Z78+AB78+AD78,6) -> $0.095300 | N78: $0.095300 | O78: 0 | P78: 0 | Q78: =SUM(N78:P78) -> $0.095300 | R78: 0 | S78: 0 | T78: 0 | U78: =SUM(R78:T78) -> 0 | V78: 0 | W78: 0 | X78: 0 | Y78: 0 | Z78: 0 | AA78: 0 | AB78: 0 | AC78: 0 | AD78: 0 | AE78: 0.0%
A79: Guggenheim BulletShares 2020 High Yield Corporate Bond ETF | B79: 18383M365 | C79: BSJK | G79: 2016-05-04 | H79: 2016-05-02 | I79: 2016-05-06 | J79: $0.088300 | K79: 0 | L79: 0 | M79: =ROUND(N79+O79+V79+Z79+AB79+AD79,6) -> $0.088300 | N79: $0.088300 | O79: 0 | P79: 0 | Q79: =SUM(N79:P79) -> $0.088300 | R79: 0 | S79: 0 | T79: 0 | U79: =SUM(R79:T79) -> 0 | V79: 0 | W79: 0 | X79: 0 | Y79: 0 | Z79: 0 | AA79: 0 | AB79: 0 | AC79: 0 | AD79: 0 | AE79: 0.0%
A80: Guggenheim BulletShares 2020 High Yield Corporate Bond ETF | B80: 18383M365 | C80: BSJK | G80: 2016-06-03 | H80: 2016-06-01 | I80: 2016-06-07 | J80: $0.114100 | K80: 0 | L80: 0 | M80: $0.114100 | N80: $0.114100 | O80: 0 | P80: 0 | Q80: $0.114100 | R80: 0 | S80: 0 | T80: 0 | U80: 0 | V80: 0 | W80: 0 | X80: 0 | Y80: 0 | Z80: 0 | AA80: 0 | AB80: 0 | AC80: 0 | AD80: 0 | AE80: 0.0%
A81: Guggenheim BulletShares 2020 High Yield Corporate Bond ETF | B81: 18383M365 | C81: BSJK | G81: 2016-07-06 | H81: 2016-07-01 | I81: 2016-07-08 | J81: $0.105200 | K81: 0 | L81: 0 | M81: $0.105200 | N81: $0.105200 | O81: 0 | P81: 0 | Q81: $0.105200 | R81: 0 | S81: 0 | T81: 0 | U81: 0 | V81: 0 | W81: 0 | X81: 0 | Y81: 0 | Z81: 0 | AA81: 0 | AB81: 0 | AC81: 0 | AD81: 0 | AE81: 0.0%
A82: Guggenheim BulletShares 2020 High Yield Corporate Bond ETF | B82: 18383M365 | C82: BSJK | G82: 2016-08-03 | H82: 2016-08-01 | I82: 2016-08-05 | J82: $0.096800 | K82: 0 | L82: 0 | M82: $0.096800 | N82: $0.096800 | O82: 0 | P82: 0 | Q82: $0.096800 | R82: 0 | S82: 0 | T82: 0 | U82: 0 | V82: 0 | W82: 0 | X82: 0 | Y82: 0 | Z82: 0 | AA82: 0 | AB82: 0 | AC82: 0 | AD82: 0 | AE82: 0.0%
A83: Guggenheim BulletShares 2020 High Yield Corporate Bond ETF | B83: 18383M365 | C83: BSJK | G83: 2016-09-06 | H83: 2016-09-01 | I83: 2016-09-08 | J83: $0.111700 | K83: 0 | L83: 0 | M83: $0.111700 | N83: $0.111700 | O83: 0 | P83: 0 | Q83: $0.111700 | R83: 0 | S83: 0 | T83: 0 | U83: 0 | V83: 0 | W83: 0 | X83: 0 | Y83: 0 | Z83: 0 | AA83: 0 | AB83: 0 | AC83: 0 | AD83: 0 | AE83: 0.0%
A84: Guggenheim BulletShares 2020 High Yield Corporate Bond ETF | B84: 18383M365 | C84: BSJK | G84: 2016-10-05 | H84: 2016-10-03 | I84: 2016-10-07 | J84: $0.099900 | K84: 0 | L84: 0 | M84: $0.099900 | N84: $0.099900 | O84: 0 | P84: 0 | Q84: $0.099900 | R84: 0 | S84: 0 | T84: 0 | U84: 0 | V84: 0 | W84: 0 | X84: 0 | Y84: 0 | Z84: 0 | AA84: 0 | AB84: 0 | AC84: 0 | AD84: 0 | AE84: 0.0%
A85: Guggenheim BulletShares 2020 High Yield Corporate Bond ETF | B85: 18383M365 | C85: BSJK | G85: 2016-11-03 | H85: 2016-11-01 | I85: 2016-11-07 | J85: $0.097300 | K85: 0 | L85: 0 | M85: $0.097300 | N85: $0.097300 | O85: 0 | P85: 0 | Q85: $0.097300 | R85: 0 | S85: 0 | T85: 0 | U85: 0 | V85: 0 | W85: 0 | X85: 0 | Y85: 0 | Z85: 0 | AA85: 0 | AB85: 0 | AC85: 0 | AD85: 0 | AE85: 0.0%
A86: Guggenheim BulletShares 2020 High Yield Corporate Bond ETF | B86: 18383M365 | C86: BSJK | G86: 2016-12-05 | H86: 2016-12-01 | I86: 2016-12-07 | J86: $0.107700 | K86: 0 | L86: 0 | M86: $0.107700 | N86: $0.107700 | O86: 0 | P86: 0 | Q86: $0.107700 | R86: 0 | S86: 0 | T86: 0 | U86: 0 | V86: 0 | W86: 0 | X86: 0 | Y86: 0 | Z86: 0 | AA86: 0 | AB86: 0 | AC86: 0 | AD86: 0 | AE86: 0.0%
A87: Guggenheim BulletShares 2020 High Yield Corporate Bond ETF | B87: 18383M365 | C87: BSJK | G87: 2016-12-30 | H87: 2016-12-28 | I87: 2017-01-04 | J87: $0.110700 | K87: 0 | L87: 0 | M87: $0.110700 | N87: $0.110700 | O87: 0 | P87: 0 | Q87: $0.110700 | R87: 0 | S87: 0 | T87: 0 | U87: 0 | V87: 0 | W87: 0 | X87: 0 | Y87: 0 | Z87: 0 | AA87: 0 | AB87: 0 | AC87: 0 | AD87: 0 | AE87: 0.0%
A88: Totals | K88: =SUM(K76:K87) -> 0 | L88: =SUM(L76:L87) -> 0 | M88: =SUM(M76:M87) -> $1.227100 | Q88: =SUM(Q76:Q87) -> $1.227100 | R88: 0 | S88: 0 | T88: 0 | U88: 0 | V88: 0 | W88: 0 | X88: 0 | Y88: 0 | Z88: 0 | AA88: 0 | AB88: 0 | AC88: 0 | AD88: 0 | AE88: 0.0%
A90: Guggenheim BulletShares 2019 High Yield Corporate Bond ETF | B90: 18383M373 | C90: BSJJ | G90: 2016-02-03 | H90: 2016-02-01 | I90: 2016-02-05 | J90: =ROUND(K90+L90+M90,6) -> $0.094400 | K90: 0 | L90: 0 | M90: =ROUND(N90+O90+V90+Z90+AB90+AD90,6) -> $0.094400 | N90: $0.094400 | O90: 0 | P90: 0 | Q90: =SUM(N90:P90) -> $0.094400 | R90: 0 | S90: 0 | T90: 0 | U90: =SUM(R90:T90) -> 0 | V90: 0 | W90: 0 | X90: 0 | Y90: 0 | Z90: 0 | AA90: 0 | AB90: 0 | AC90: 0 | AD90: 0 | AE90: 0.0%
A91: Guggenheim BulletShares 2019 High Yield Corporate Bond ETF | B91: 18383M373 | C91: BSJJ | G91: 2016-03-03 | H91: 2016-03-01 | I91: 2016-03-07 | J91: =ROUND(K91+L91+M91,6) -> $0.101900 | K91: 0 | L91: 0 | M91: =ROUND(N91+O91+V91+Z91+AB91+AD91,6) -> $0.101900 | N91: $0.101900 | O91: 0 | P91: 0 | Q91: =SUM(N91:P91) -> $0.101900 | R91: 0 | S91: 0 | T91: 0 | U91: =SUM(R91:T91) -> 0 | V91: 0 | W91: 0 | X91: 0 | Y91: 0 | Z91: 0 | AA91: 0 | AB91: 0 | AC91: 0 | AD91: 0 | AE91: 0.0%
A92: Guggenheim BulletShares 2019 High Yield Corporate Bond ETF | B92: 18383M373 | C92: BSJJ | G92: 2016-04-05 | H92: 2016-04-01 | I92: 2016-04-07 | J92: $0.097800 | K92: 0 | L92: 0 | M92: =ROUND(N92+O92+V92+Z92+AB92+AD92,6) -> $0.097800 | N92: $0.097800 | O92: 0 | P92: 0 | Q92: =SUM(N92:P92) -> $0.097800 | R92: 0 | S92: 0 | T92: 0 | U92: =SUM(R92:T92) -> 0 | V92: 0 | W92: 0 | X92: 0 | Y92: 0 | Z92: 0 | AA92: 0 | AB92: 0 | AC92: 0 | AD92: 0 | AE92: 0.0%
A93: Guggenheim BulletShares 2019 High Yield Corporate Bond ETF | B93: 18383M373 | C93: BSJJ | G93: 2016-05-04 | H93: 2016-05-02 | I93: 2016-05-06 | J93: $0.094700 | K93: 0 | L93: 0 | M93: =ROUND(N93+O93+V93+Z93+AB93+AD93,6) -> $0.094700 | N93: $0.094700 | O93: 0 | P93: 0 | Q93: =SUM(N93:P93) -> $0.094700 | R93: 0 | S93: 0 | T93: 0 | U93: =SUM(R93:T93) -> 0 | V93: 0 | W93: 0 | X93: 0 | Y93: 0 | Z93: 0 | AA93: 0 | AB93: 0 | AC93: 0 | AD93: 0 | AE93: 0.0%
A94: Guggenheim BulletShares 2019 High Yield Corporate Bond ETF | B94: 18383M373 | C94: BSJJ | G94: 2016-06-03 | H94: 2016-06-01 | I94: 2016-06-07 | J94: $0.103800 | K94: 0 | L94: 0 | M94: $0.103800 | N94: $0.103800 | O94: 0 | P94: 0 | Q94: $0.103800 | R94: 0 | S94: 0 | T94: 0 | U94: 0 | V94: 0 | W94: 0 | X94: 0 | Y94: 0 | Z94: 0 | AA94: 0 | AB94: 0 | AC94: 0 | AD94: 0 | AE94: 0.0%
A95: Guggenheim BulletShares 2019 High Yield Corporate Bond ETF | B95: 18383M373 | C95: BSJJ | G95: 2016-07-06 | H95: 2016-07-01 | I95: 2016-07-08 | J95: $0.107100 | K95: 0 | L95: 0 | M95: $0.107100 | N95: $0.107100 | O95: 0 | P95: 0 | Q95: $0.107100 | R95: 0 | S95: 0 | T95: 0 | U95: 0 | V95: 0 | W95: 0 | X95: 0 | Y95: 0 | Z95: 0 | AA95: 0 | AB95: 0 | AC95: 0 | AD95: 0 | AE95: 0.0%
A96: Guggenheim BulletShares 2019 High Yield Corporate Bond ETF | B96: 18383M373 | C96: BSJJ | G96: 2016-08-03 | H96: 2016-08-01 | I96: 2016-08-05 | J96: $0.098200 | K96: 0 | L96: 0 | M96: $0.098200 | N96: $0.098200 | O96: 0 | P96: 0 | Q96: $0.098200 | R96: 0 | S96: 0 | T96: 0 | U96: 0 | V96: 0 | W96: 0 | X96: 0 | Y96: 0 | Z96: 0 | AA96: 0 | AB96: 0 | AC96: 0 | AD96: 0 | AE96: 0.0%
A97: Guggenheim BulletShares 2019 High Yield Corporate Bond ETF | B97: 18383M373 | C97: BSJJ | G97: 2016-09-06 | H97: 2016-09-01 | I97: 2016-09-08 | J97: $0.109900 | K97: 0 | L97: 0 | M97: $0.109900 | N97: $0.109900 | O97: 0 | P97: 0 | Q97: $0.109900 | R97: 0 | S97: 0 | T97: 0 | U97: 0 | V97: 0 | W97: 0 | X97: 0 | Y97: 0 | Z97: 0 | AA97: 0 | AB97: 0 | AC97: 0 | AD97: 0 | AE97: 0.0%
A98: Guggenheim BulletShares 2019 High Yield Corporate Bond ETF | B98: 18383M373 | C98: BSJJ | G98: 2016-10-05 | H98: 2016-10-03 | I98: 2016-10-07 | J98: $0.099200 | K98: 0 | L98: 0 | M98: $0.099200 | N98: $0.099200 | O98: 0 | P98: 0 | Q98: $0.099200 | R98: 0 | S98: 0 | T98: 0 | U98: 0 | V98: 0 | W98: 0 | X98: 0 | Y98: 0 | Z98: 0 | AA98: 0 | AB98: 0 | AC98: 0 | AD98: 0 | AE98: 0.0%
A99: Guggenheim BulletShares 2019 High Yield Corporate Bond ETF | B99: 18383M373 | C99: BSJJ | G99: 2016-11-03 | H99: 2016-11-01 | I99: 2016-11-07 | J99: $0.088500 | K99: 0 | L99: 0 | M99: $0.088500 | N99: $0.088500 | O99: 0 | P99: 0 | Q99: $0.088500 | R99: 0 | S99: 0 | T99: 0 | U99: 0 | V99: 0 | W99: 0 | X99: 0 | Y99: 0 | Z99: 0 | AA99: 0 | AB99: 0 | AC99: 0 | AD99: 0 | AE99: 0.0%
A100: Guggenheim BulletShares 2019 High Yield Corporate Bond ETF | B100: 18383M373 | C100: BSJJ | G100: 2016-12-05 | H100: 2016-12-01 | I100: 2016-12-07 | J100: $0.098900 | K100: 0 | L100: 0 | M100: $0.098900 | N100: $0.098900 | O100: 0 | P100: 0 | Q100: $0.098900 | R100: 0 | S100: 0 | T100: 0 | U100: 0 | V100: 0 | W100: 0 | X100: 0 | Y100: 0 | Z100: 0 | AA100: 0 | AB100: 0 | AC100: 0 | AD100: 0 | AE100: 0.0%
A101: Guggenheim BulletShares 2019 High Yield Corporate Bond ETF | B101: 18383M373 | C101: BSJJ | G101: 2016-12-30 | H101: 2016-12-28 | I101: 2017-01-04 | J101: $0.113100 | K101: 0 | L101: 0 | M101: $0.113100 | N101: $0.113100 | O101: 0 | P101: 0 | Q101: $0.113100 | R101: 0 | S101: 0 | T101: 0 | U101: 0 | V101: 0 | W101: 0 | X101: 0 | Y101: 0 | Z101: 0 | AA101: 0 | AB101: 0 | AC101: 0 | AD101: 0 | AE101: 0.0%
A102: Totals | K102: =SUM(K90:K101) -> 0 | L102: =SUM(L90:L101) -> 0 | M102: =SUM(M90:M101) -> $1.207500 | Q102: =SUM(Q90:Q101) -> $1.207500 | R102: 0 | S102: 0 | T102: 0 | U102: 0 | V102: 0 | W102: 0 | X102: 0 | Y102: 0 | Z102: 0 | AA102: 0 | AB102: 0 | AC102: 0 | AD102: 0 | AE102: 0.0%
A104: Guggenheim BulletShares 2018 High Yield Corporte Bond ETF | B104: 18383M381 | C104: BSJI | G104: 2016-02-03 | H104: 2016-02-01 | I104: 2016-02-05 | J104: =ROUND(K104+L104+M104,6) -> $0.091100 | K104: 0 | L104: 0 | M104: =ROUND(N104+O104+V104+Z104+AB104+AD104,6) -> $0.091100 | N104: $0.091100 | O104: 0 | P104: 0 | Q104: =SUM(N104:P104) -> $0.091100 | R104: 0 | S104: 0 | T104: 0 | U104: =SUM(R104:T104) -> 0 | V104: 0 | W104: 0 | X104: 0 | Y104: 0 | Z104: 0 | AA104: 0 | AB104: 0 | AC104: 0 | AD104: 0 | AE104: 0.0%
A105: Guggenheim BulletShares 2018 High Yield Corporte Bond ETF | B105: 18383M381 | C105: BSJI | G105: 2016-03-03 | H105: 2016-03-01 | I105: 2016-03-07 | J105: =ROUND(K105+L105+M105,6) -> $0.097100 | K105: 0 | L105: 0 | M105: $0.097100 | N105: $0.097100 | O105: 0 | P105: 0 | Q105: $0.097100 | R105: 0 | S105: 0 | T105: 0 | U105: 0 | V105: 0 | W105: 0 | X105: 0 | Y105: 0 | Z105: 0 | AA105: 0 | AB105: 0 | AC105: 0 | AD105: 0 | AE105: 0.0%
A106: Guggenheim BulletShares 2018 High Yield Corporte Bond ETF | B106: 18383M381 | C106: BSJI | G106: 2016-04-05 | H106: 2016-04-01 | I106: 2016-04-07 | J106: $0.098400 | K106: 0 | L106: 0 | M106: $0.098400 | N106: $0.098400 | O106: 0 | P106: 0 | Q106: $0.098400 | R106: 0 | S106: 0 | T106: 0 | U106: 0 | V106: 0 | W106: 0 | X106: 0 | Y106: 0 | Z106: 0 | AA106: 0 | AB106: 0 | AC106: 0 | AD106: 0 | AE106: 0.0%
A107: Guggenheim BulletShares 2018 High Yield Corporte Bond ETF | B107: 18383M381 | C107: BSJI | G107: 2016-05-04 | H107: 2016-05-02 | I107: 2016-05-06 | J107: $0.093100 | K107: 0 | L107: 0 | M107: $0.093100 | N107: $0.093100 | O107: 0 | P107: 0 | Q107: $0.093100 | R107: 0 | S107: 0 | T107: 0 | U107: 0 | V107: 0 | W107: 0 | X107: 0 | Y107: 0 | Z107: 0 | AA107: 0 | AB107: 0 | AC107: 0 | AD107: 0 | AE107: 0.0%
A108: Guggenheim BulletShares 2018 High Yield Corporte Bond ETF | B108: 18383M381 | C108: BSJI | G108: 2016-06-03 | H108: 2016-06-01 | I108: 2016-06-07 | J108: $0.102200 | K108: 0 | L108: 0 | M108: $0.102200 | N108: $0.102200 | O108: 0 | P108: 0 | Q108: $0.102200 | R108: 0 | S108: 0 | T108: 0 | U108: 0 | V108: 0 | W108: 0 | X108: 0 | Y108: 0 | Z108: 0 | AA108: 0 | AB108: 0 | AC108: 0 | AD108: 0 | AE108: 0.0%
A109: Guggenheim BulletShares 2018 High Yield Corporte Bond ETF | B109: 18383M381 | C109: BSJI | G109: 2016-07-06 | H109: 2016-07-01 | I109: 2016-07-08 | J109: $0.096200 | K109: 0 | L109: 0 | M109: $0.096200 | N109: $0.096200 | O109: 0 | P109: 0 | Q109: $0.096200 | R109: 0 | S109: 0 | T109: 0 | U109: 0 | V109: 0 | W109: 0 | X109: 0 | Y109: 0 | Z109: 0 | AA109: 0 | AB109: 0 | AC109: 0 | AD109: 0 | AE109: 0.0%
A110: Guggenheim BulletShares 2018 High Yield Corporte Bond ETF | B110: 18383M381 | C110: BSJI | G110: 2016-08-03 | H110: 2016-08-01 | I110: 2016-08-05 | J110: $0.087000 | K110: 0 | L110: 0 | M110: $0.087000 | N110: $0.087000 | O110: 0 | P110: 0 | Q110: $0.087000 | R110: 0 | S110: 0 | T110: 0 | U110: 0 | V110: 0 | W110: 0 | X110: 0 | Y110: 0 | Z110: 0 | AA110: 0 | AB110: 0 | AC110: 0 | AD110: 0 | AE110: 0.0%
A111: Guggenheim BulletShares 2018 High Yield Corporte Bond ETF | B111: 18383M381 | C111: BSJI | G111: 2016-09-06 | H111: 2016-09-01 | I111: 2016-09-08 | J111: $0.097700 | K111: 0 | L111: 0 | M111: $0.097700 | N111: $0.097700 | O111: 0 | P111: 0 | Q111: $0.097700 | R111: 0 | S111: 0 | T111: 0 | U111: 0 | V111: 0 | W111: 0 | X111: 0 | Y111: 0 | Z111: 0 | AA111: 0 | AB111: 0 | AC111: 0 | AD111: 0 | AE111: 0.0%
A112: Guggenheim BulletShares 2018 High Yield Corporte Bond ETF | B112: 18383M381 | C112: BSJI | G112: 2016-10-05 | H112: 2016-10-03 | I112: 2016-10-07 | J112: $0.090100 | K112: 0 | L112: 0 | M112: $0.090100 | N112: $0.090100 | O112: 0 | P112: 0 | Q112: $0.090100 | R112: 0 | S112: 0 | T112: 0 | U112: 0 | V112: 0 | W112: 0 | X112: 0 | Y112: 0 | Z112: 0 | AA112: 0 | AB112: 0 | AC112: 0 | AD112: 0 | AE112: 0.0%
A113: Guggenheim BulletShares 2018 High Yield Corporte Bond ETF | B113: 18383M381 | C113: BSJI | G113: 2016-11-03 | H113: 2016-11-01 | I113: 2016-11-07 | J113: $0.078500 | K113: 0 | L113: 0 | M113: $0.078500 | N113: $0.078500 | O113: 0 | P113: 0 | Q113: $0.078500 | R113: 0 | S113: 0 | T113: 0 | U113: 0 | V113: 0 | W113: 0 | X113: 0 | Y113: 0 | Z113: 0 | AA113: 0 | AB113: 0 | AC113: 0 | AD113: 0 | AE113: 0.0%
A114: Guggenheim BulletShares 2018 High Yield Corporte Bond ETF | B114: 18383M381 | C114: BSJI | G114: 2016-12-05 | H114: 2016-12-01 | I114: 2016-12-07 | J114: $0.087500 | K114: 0 | L114: 0 | M114: $0.087500 | N114: $0.087500 | O114: 0 | P114: 0 | Q114: $0.087500 | R114: 0 | S114: 0 | T114: 0 | U114: 0 | V114: 0 | W114: 0 | X114: 0 | Y114: 0 | Z114: 0 | AA114: 0 | AB114: 0 | AC114: 0 | AD114: 0 | AE114: 0.0%
A115: Guggenheim BulletShares 2018 High Yield Corporte Bond ETF | B115: 18383M381 | C115: BSJI | G115: 2016-12-30 | H115: 2016-12-28 | I115: 2017-01-04 | J115: $0.092300 | K115: 0 | L115: 0 | M115: $0.092300 | N115: $0.092300 | O115: 0 | P115: 0 | Q115: $0.092300 | R115: 0 | S115: 0 | T115: 0 | U115: 0 | V115: 0 | W115: 0 | X115: 0 | Y115: 0 | Z115: 0 | AA115: 0 | AB115: 0 | AC115: 0 | AD115: 0 | AE115: 0.0%
A116: Totals | K116: =SUM(K104:K115) -> 0 | L116: =SUM(L104:L115) -> 0 | M116: =SUM(M104:M115) -> $1.111200 | Q116: =SUM(Q104:Q115) -> $1.111200 | R116: 0 | S116: 0 | T116: 0 | U116: 0 | V116: 0 | W116: 0 | X116: 0 | Y116: 0 | Z116: 0 | AA116: 0 | AB116: 0 | AC116: 0 | AD116: 0 | AE116: 0.0%
A118: Guggenheim BulletShares 2017 High Yield Corporate Bond ETF | B118: 18383M399 | C118: BSJH | G118: 2016-02-03 | H118: 2016-02-01 | I118: 2016-02-05 | J118: =ROUND(K118+L118+M118,6) -> $0.071200 | K118: 0 | L118: 0 | M118: =ROUND(N118+O118+V118+Z118+AB118+AD118,6) -> $0.071200 | N118: $0.071200 | O118: 0 | P118: 0 | Q118: =SUM(N118:P118) -> $0.071200 | R118: 0 | S118: 0 | T118: 0 | U118: =SUM(R118:T118) -> 0 | V118: 0 | W118: 0 | X118: 0 | Y118: 0 | Z118: 0 | AA118: 0 | AB118: 0 | AC118: 0 | AD118: 0 | AE118: 0.0%
A119: Guggenheim BulletShares 2017 High Yield Corporate Bond ETF | B119: 18383M399 | C119: BSJH | G119: 2016-03-03 | H119: 2016-03-01 | I119: 2016-03-07 | J119: =ROUND(K119+L119+M119,6) -> $0.084700 | K119: 0 | L119: 0 | M119: =ROUND(N119+O119+V119+Z119+AB119+AD119,6) -> $0.084700 | N119: $0.084700 | O119: 0 | P119: 0 | Q119: =SUM(N119:P119) -> $0.084700 | R119: 0 | S119: 0 | T119: 0 | U119: =SUM(R119:T119) -> 0 | V119: 0 | W119: 0 | X119: 0 | Y119: 0 | Z119: 0 | AA119: 0 | AB119: 0 | AC119: 0 | AD119: 0 | AE119: 0.0%
A120: Guggenheim BulletShares 2017 High Yield Corporate Bond ETF | B120: 18383M399 | C120: BSJH | G120: 2016-04-05 | H120: 2016-04-01 | I120: 2016-04-07 | J120: $0.083200 | K120: 0 | L120: 0 | M120: =ROUND(N120+O120+V120+Z120+AB120+AD120,6) -> $0.083200 | N120: $0.083200 | O120: 0 | P120: 0 | Q120: =SUM(N120:P120) -> $0.083200 | R120: 0 | S120: 0 | T120: 0 | U120: =SUM(R120:T120) -> 0 | V120: 0 | W120: 0 | X120: 0 | Y120: 0 | Z120: 0 | AA120: 0 | AB120: 0 | AC120: 0 | AD120: 0 | AE120: 0.0%
A121: Guggenheim BulletShares 2017 High Yield Corporate Bond ETF | B121: 18383M399 | C121: BSJH | G121: 2016-05-04 | H121: 2016-05-02 | I121: 2016-05-06 | J121: $0.076800 | K121: 0 | L121: 0 | M121: =ROUND(N121+O121+V121+Z121+AB121+AD121,6) -> $0.076800 | N121: $0.076800 | O121: 0 | P121: 0 | Q121: =SUM(N121:P121) -> $0.076800 | R121: 0 | S121: 0 | T121: 0 | U121: =SUM(R121:T121) -> 0 | V121: 0 | W121: 0 | X121: 0 | Y121: 0 | Z121: 0 | AA121: 0 | AB121: 0 | AC121: 0 | AD121: 0 | AE121: 0.0%
A122: Guggenheim BulletShares 2017 High Yield Corporate Bond ETF | B122: 18383M399 | C122: BSJH | G122: 2016-06-03 | H122: 2016-06-01 | I122: 2016-06-07 | J122: $0.082500 | K122: 0 | L122: 0 | M122: $0.082500 | N122: $0.082500 | O122: 0 | P122: 0 | Q122: $0.082500 | R122: 0 | S122: 0 | T122: 0 | U122: 0 | V122: 0 | W122: 0 | X122: 0 | Y122: 0 | Z122: 0 | AA122: 0 | AB122: 0 | AC122: 0 | AD122: 0 | AE122: 0.0%
A123: Guggenheim BulletShares 2017 High Yield Corporate Bond ETF | B123: 18383M399 | C123: BSJH | G123: 2016-07-06 | H123: 2016-07-01 | I123: 2016-07-08 | J123: $0.080100 | K123: 0 | L123: 0 | M123: $0.080100 | N123: $0.080100 | O123: 0 | P123: 0 | Q123: $0.080100 | R123: 0 | S123: 0 | T123: 0 | U123: 0 | V123: 0 | W123: 0 | X123: 0 | Y123: 0 | Z123: 0 | AA123: 0 | AB123: 0 | AC123: 0 | AD123: 0 | AE123: 0.0%
A124: Guggenheim BulletShares 2017 High Yield Corporate Bond ETF | B124: 18383M399 | C124: BSJH | G124: 2016-08-03 | H124: 2016-08-01 | I124: 2016-08-05 | J124: $0.077900 | K124: 0 | L124: 0 | M124: $0.077900 | N124: $0.077900 | O124: 0 | P124: 0 | Q124: $0.077900 | R124: 0 | S124: 0 | T124: 0 | U124: 0 | V124: 0 | W124: 0 | X124: 0 | Y124: 0 | Z124: 0 | AA124: 0 | AB124: 0 | AC124: 0 | AD124: 0 | AE124: 0.0%
A125: Guggenheim BulletShares 2017 High Yield Corporate Bond ETF | B125: 18383M399 | C125: BSJH | G125: 2016-09-06 | H125: 2016-09-01 | I125: 2016-09-08 | J125: $0.089200 | K125: 0 | L125: 0 | M125: $0.089200 | N125: $0.089200 | O125: 0 | P125: 0 | Q125: $0.089200 | R125: 0 | S125: 0 | T125: 0 | U125: 0 | V125: 0 | W125: 0 | X125: 0 | Y125: 0 | Z125: 0 | AA125: 0 | AB125: 0 | AC125: 0 | AD125: 0 | AE125: 0.0%
A126: Guggenheim BulletShares 2017 High Yield Corporate Bond ETF | B126: 18383M399 | C126: BSJH | G126: 2016-10-05 | H126: 2016-10-03 | I126: 2016-10-07 | J126: $0.083300 | K126: 0 | L126: 0 | M126: $0.083300 | N126: $0.083300 | O126: 0 | P126: 0 | Q126: $0.083300 | R126: 0 | S126: 0 | T126: 0 | U126: 0 | V126: 0 | W126: 0 | X126: 0 | Y126: 0 | Z126: 0 | AA126: 0 | AB126: 0 | AC126: 0 | AD126: 0 | AE126: 0.0%
A127: Guggenheim BulletShares 2017 High Yield Corporate Bond ETF | B127: 18383M399 | C127: BSJH | G127: 2016-11-03 | H127: 2016-11-01 | I127: 2016-11-07 | J127: $0.080700 | K127: 0 | L127: 0 | M127: $0.080700 | N127: $0.080700 | O127: 0 | P127: 0 | Q127: $0.080700 | R127: 0 | S127: 0 | T127: 0 | U127: 0 | V127: 0 | W127: 0 | X127: 0 | Y127: 0 | Z127: 0 | AA127: 0 | AB127: 0 | AC127: 0 | AD127: 0 | AE127: 0.0%
A128: Guggenheim BulletShares 2017 High Yield Corporate Bond ETF | B128: 18383M399 | C128: BSJH | G128: 2016-12-05 | H128: 2016-12-01 | I128: 2016-12-07 | J128: $0.078000 | K128: 0 | L128: 0 | M128: $0.078000 | N128: $0.078000 | O128: 0 | P128: 0 | Q128: $0.078000 | R128: 0 | S128: 0 | T128: 0 | U128: 0 | V128: 0 | W128: 0 | X128: 0 | Y128: 0 | Z128: 0 | AA128: 0 | AB128: 0 | AC128: 0 | AD128: 0 | AE128: 0.0%
A129: Guggenheim BulletShares 2017 High Yield Corporate Bond ETF | B129: 18383M399 | C129: BSJH | G129: 2016-12-30 | H129: 2016-12-28 | I129: 2017-01-04 | J129: $0.089100 | K129: 0 | L129: 0 | M129: $0.089100 | N129: $0.089100 | O129: 0 | P129: 0 | Q129: $0.089100 | R129: 0 | S129: 0 | T129: 0 | U129: 0 | V129: 0 | W129: 0 | X129: 0 | Y129: 0 | Z129: 0 | AA129: 0 | AB129: 0 | AC129: 0 | AD129: 0 | AE129: 0.0%
A130: Totals | K130: =SUM(K118:K129) -> 0 | L130: =SUM(L118:L129) -> 0 | M130: =SUM(M118:M129) -> $0.976700 | Q130: =SUM(Q118:Q129) -> $0.976700 | R130: 0 | S130: 0 | T130: 0 | U130: 0 | V130: 0 | W130: 0 | X130: 0 | Y130: 0 | Z130: 0 | AA130: 0 | AB130: 0 | AC130: 0 | AD130: 0 | AE130: 0.0%
A132: Guggenheim BulletShares 2024 Corporate Bond ETF | B132: 18383M233 | C132: BSCO | G132: 2016-02-03 | H132: 2016-02-01 | I132: 2016-02-05 | J132: =ROUND(K132+L132+M132,6) -> $0.044700 | K132: 0 | L132: 0 | M132: =ROUND(N132+O132+V132+Z132+AB132+AD132,6) -> $0.044700 | N132: $0.044700 | O132: 0 | P132: 0 | Q132: =SUM(N132:P132) -> $0.044700 | R132: 0 | S132: 0 | T132: 0 | U132: =SUM(R132:T132) -> 0 | V132: 0 | W132: 0 | X132: 0 | Y132: 0 | Z132: 0 | AA132: 0 | AB132: 0 | AC132: 0 | AD132: 0 | AE132: 0.0%
A133: Guggenheim BulletShares 2024 Corporate Bond ETF | B133: 18383M233 | C133: BSCO | G133: 2016-03-03 | H133: 2016-03-01 | I133: 2016-03-07 | J133: =ROUND(K133+L133+M133,6) -> $0.047700 | K133: 0 | L133: 0 | M133: $0.047700 | N133: $0.047700 | O133: 0 | P133: 0 | Q133: $0.047700 | R133: 0 | S133: 0 | T133: 0 | U133: 0 | V133: 0 | W133: 0 | X133: 0 | Y133: 0 | Z133: 0 | AA133: 0 | AB133: 0 | AC133: 0 | AD133: 0 | AE133: 0.0%
A134: Guggenheim BulletShares 2024 Corporate Bond ETF | B134: 18383M233 | C134: BSCO | G134: 2016-04-05 | H134: 2016-04-01 | I134: 2016-04-07 | J134: $0.055700 | K134: 0 | L134: 0 | M134: $0.055700 | N134: $0.055700 | O134: 0 | P134: 0 | Q134: $0.055700 | R134: 0 | S134: 0 | T134: 0 | U134: 0 | V134: 0 | W134: 0 | X134: 0 | Y134: 0 | Z134: 0 | AA134: 0 | AB134: 0 | AC134: 0 | AD134: 0 | AE134: 0.0%
A135: Guggenheim BulletShares 2024 Corporate Bond ETF | B135: 18383M233 | C135: BSCO | G135: 2016-05-04 | H135: 2016-05-02 | I135: 2016-05-06 | J135: $0.050900 | K135: 0 | L135: 0 | M135: $0.050900 | N135: $0.050900 | O135: 0 | P135: 0 | Q135: $0.050900 | R135: 0 | S135: 0 | T135: 0 | U135: 0 | V135: 0 | W135: 0 | X135: 0 | Y135: 0 | Z135: 0 | AA135: 0 | AB135: 0 | AC135: 0 | AD135: 0 | AE135: 0.0%
A136: Guggenheim BulletShares 2024 Corporate Bond ETF | B136: 18383M233 | C136: BSCO | G136: 2016-06-03 | H136: 2016-06-01 | I136: 2016-06-07 | J136: $0.054100 | K136: 0 | L136: 0 | M136: $0.054100 | N136: $0.054100 | O136: 0 | P136: 0 | Q136: $0.054100 | R136: 0 | S136: 0 | T136: 0 | U136: 0 | V136: 0 | W136: 0 | X136: 0 | Y136: 0 | Z136: 0 | AA136: 0 | AB136: 0 | AC136: 0 | AD136: 0 | AE136: 0.0%
A137: Guggenheim BulletShares 2024 Corporate Bond ETF | B137: 18383M233 | C137: BSCO | G137: 2016-07-06 | H137: 2016-07-01 | I137: 2016-07-08 | J137: $0.052900 | K137: 0 | L137: 0 | M137: $0.052900 | N137: $0.052900 | O137: 0 | P137: 0 | Q137: $0.052900 | R137: 0 | S137: 0 | T137: 0 | U137: 0 | V137: 0 | W137: 0 | X137: 0 | Y137: 0 | Z137: 0 | AA137: 0 | AB137: 0 | AC137: 0 | AD137: 0 | AE137: 0.0%
A138: Guggenheim BulletShares 2024 Corporate Bond ETF | B138: 18383M233 | C138: BSCO | G138: 2016-08-03 | H138: 2016-08-01 | I138: 2016-08-05 | J138: $0.049900 | K138: 0 | L138: 0 | M138: $0.049900 | N138: $0.049900 | O138: 0 | P138: 0 | Q138: $0.049900 | R138: 0 | S138: 0 | T138: 0 | U138: 0 | V138: 0 | W138: 0 | X138: 0 | Y138: 0 | Z138: 0 | AA138: 0 | AB138: 0 | AC138: 0 | AD138: 0 | AE138: 0.0%
A139: Guggenheim BulletShares 2024 Corporate Bond ETF | B139: 18383M233 | C139: BSCO | G139: 2016-09-06 | H139: 2016-09-01 | I139: 2016-09-08 | J139: $0.054500 | K139: 0 | L139: 0 | M139: $0.054500 | N139: $0.054500 | O139: 0 | P139: 0 | Q139: $0.054500 | R139: 0 | S139: 0 | T139: 0 | U139: 0 | V139: 0 | W139: 0 | X139: 0 | Y139: 0 | Z139: 0 | AA139: 0 | AB139: 0 | AC139: 0 | AD139: 0 | AE139: 0.0%
A140: Guggenheim BulletShares 2024 Corporate Bond ETF | B140: 18383M233 | C140: BSCO | G140: 2016-10-05 | H140: 2016-10-03 | I140: 2016-10-07 | J140: $0.049600 | K140: 0 | L140: 0 | M140: $0.049600 | N140: $0.049600 | O140: 0 | P140: 0 | Q140: $0.049600 | R140: 0 | S140: 0 | T140: 0 | U140: 0 | V140: 0 | W140: 0 | X140: 0 | Y140: 0 | Z140: 0 | AA140: 0 | AB140: 0 | AC140: 0 | AD140: 0 | AE140: 0.0%
A141: Guggenheim BulletShares 2024 Corporate Bond ETF | B141: 18383M233 | C141: BSCO | G141: 2016-11-03 | H141: 2016-11-01 | I141: 2016-11-07 | J141: $0.048100 | K141: 0 | L141: 0 | M141: $0.048100 | N141: $0.048100 | O141: 0 | P141: 0 | Q141: $0.048100 | R141: 0 | S141: 0 | T141: 0 | U141: 0 | V141: 0 | W141: 0 | X141: 0 | Y141: 0 | Z141: 0 | AA141: 0 | AB141: 0 | AC141: 0 | AD141: 0 | AE141: 0.0%
A142: Guggenheim BulletShares 2024 Corporate Bond ETF | B142: 18383M233 | C142: BSCO | G142: 2016-12-05 | H142: 2016-12-01 | I142: 2016-12-07 | J142: $0.053500 | K142: 0 | L142: 0 | M142: $0.053500 | N142: $0.053500 | O142: 0 | P142: 0 | Q142: $0.053500 | R142: 0 | S142: 0 | T142: 0 | U142: 0 | V142: 0 | W142: 0 | X142: 0 | Y142: 0 | Z142: 0 | AA142: 0 | AB142: 0 | AC142: 0 | AD142: 0 | AE142: 0.0%
A143: Guggenheim BulletShares 2024 Corporate Bond ETF | B143: 18383M233 | C143: BSCO | G143: 2016-12-30 | H143: 2016-12-28 | I143: 2017-01-04 | J143: $0.083600 | K143: 0 | L143: 0 | M143: $0.083600 | N143: $0.057400 | O143: $0.023900 | P143: 0 | Q143: $0.081300 | R143: 0 | S143: 0 | T143: 0 | U143: 0 | V143: $0.002300 | W143: 0 | X143: 0 | Y143: 0 | Z143: 0 | AA143: 0 | AB143: 0 | AC143: 0 | AD143: 0 | AE143: 0.0%
A144: Totals | K144: =SUM(K132:K143) -> 0 | L144: =SUM(L132:L143) -> 0 | M144: =SUM(M132:M143) -> $0.645200 | Q144: =SUM(Q132:Q143) -> $0.642900 | R144: 0 | S144: 0 | T144: 0 | U144: 0 | V144: $0.002300 | W144: 0 | X144: 0 | Y144: 0 | Z144: 0 | AA144: 0 | AB144: 0 | AC144: 0 | AD144: 0 | AE144: 0.0%
A146: Guggenheim BulletShares 2023 Corporate Bond ETF | B146: 18383M241 | C146: BSCN | G146: 2016-02-03 | H146: 2016-02-01 | I146: 2016-02-05 | J146: =ROUND(K146+L146+M146,6) -> $0.047100 | K146: 0 | L146: 0 | M146: =ROUND(N146+O146+V146+Z146+AB146+AD146,6) -> $0.047100 | N146: $0.047100 | O146: 0 | P146: 0 | Q146: =SUM(N146:P146) -> $0.047100 | R146: 0 | S146: 0 | T146: 0 | U146: =SUM(R146:T146) -> 0 | V146: 0 | W146: 0 | X146: 0 | Y146: 0 | Z146: 0 | AA146: 0 | AB146: 0 | AC146: 0 | AD146: 0 | AE146: 0.0%
A147: Guggenheim BulletShares 2023 Corporate Bond ETF | B147: 18383M241 | C147: BSCN | G147: 2016-03-03 | H147: 2016-03-01 | I147: 2016-03-07 | J147: =ROUND(K147+L147+M147,6) -> $0.043000 | K147: 0 | L147: 0 | M147: $0.043000 | N147: $0.043000 | O147: 0 | P147: 0 | Q147: $0.043000 | R147: 0 | S147: 0 | T147: 0 | U147: 0 | V147: 0 | W147: 0 | X147: 0 | Y147: 0 | Z147: 0 | AA147: 0 | AB147: 0 | AC147: 0 | AD147: 0 | AE147: 0.0%
A148: Guggenheim BulletShares 2023 Corporate Bond ETF | B148: 18383M241 | C148: BSCN | G148: 2016-04-05 | H148: 2016-04-01 | I148: 2016-04-07 | J148: $0.048400 | K148: 0 | L148: 0 | M148: $0.048400 | N148: $0.048400 | O148: 0 | P148: 0 | Q148: $0.048400 | R148: 0 | S148: 0 | T148: 0 | U148: 0 | V148: 0 | W148: 0 | X148: 0 | Y148: 0 | Z148: 0 | AA148: 0 | AB148: 0 | AC148: 0 | AD148: 0 | AE148: 0.0%
A149: Guggenheim BulletShares 2023 Corporate Bond ETF | B149: 18383M241 | C149: BSCN | G149: 2016-05-04 | H149: 2016-05-02 | I149: 2016-05-06 | J149: $0.049400 | K149: 0 | L149: 0 | M149: $0.049400 | N149: $0.049400 | O149: 0 | P149: 0 | Q149: $0.049400 | R149: 0 | S149: 0 | T149: 0 | U149: 0 | V149: 0 | W149: 0 | X149: 0 | Y149: 0 | Z149: 0 | AA149: 0 | AB149: 0 | AC149: 0 | AD149: 0 | AE149: 0.0%
A150: Guggenheim BulletShares 2023 Corporate Bond ETF | B150: 18383M241 | C150: BSCN | G150: 2016-06-03 | H150: 2016-06-01 | I150: 2016-06-07 | J150: $0.051500 | K150: 0 | L150: 0 | M150: $0.051500 | N150: $0.051500 | O150: 0 | P150: 0 | Q150: $0.051500 | R150: 0 | S150: 0 | T150: 0 | U150: 0 | V150: 0 | W150: 0 | X150: 0 | Y150: 0 | Z150: 0 | AA150: 0 | AB150: 0 | AC150: 0 | AD150: 0 | AE150: 0.0%
A151: Guggenheim BulletShares 2023 Corporate Bond ETF | B151: 18383M241 | C151: BSCN | G151: 2016-07-06 | H151: 2016-07-01 | I151: 2016-07-08 | J151: $0.050300 | K151: 0 | L151: 0 | M151: $0.050300 | N151: $0.050300 | O151: 0 | P151: 0 | Q151: $0.050300 | R151: 0 | S151: 0 | T151: 0 | U151: 0 | V151: 0 | W151: 0 | X151: 0 | Y151: 0 | Z151: 0 | AA151: 0 | AB151: 0 | AC151: 0 | AD151: 0 | AE151: 0.0%
A152: Guggenheim BulletShares 2023 Corporate Bond ETF | B152: 18383M241 | C152: BSCN | G152: 2016-08-03 | H152: 2016-08-01 | I152: 2016-08-05 | J152: $0.048200 | K152: 0 | L152: 0 | M152: $0.048200 | N152: $0.048200 | O152: 0 | P152: 0 | Q152: $0.048200 | R152: 0 | S152: 0 | T152: 0 | U152: 0 | V152: 0 | W152: 0 | X152: 0 | Y152: 0 | Z152: 0 | AA152: 0 | AB152: 0 | AC152: 0 | AD152: 0 | AE152: 0.0%
A153: Guggenheim BulletShares 2023 Corporate Bond ETF | B153: 18383M241 | C153: BSCN | G153: 2016-09-06 | H153: 2016-09-01 | I153: 2016-09-08 | J153: $0.054600 | K153: 0 | L153: 0 | M153: $0.054600 | N153: $0.054600 | O153: 0 | P153: 0 | Q153: $0.054600 | R153: 0 | S153: 0 | T153: 0 | U153: 0 | V153: 0 | W153: 0 | X153: 0 | Y153: 0 | Z153: 0 | AA153: 0 | AB153: 0 | AC153: 0 | AD153: 0 | AE153: 0.0%
A154: Guggenheim BulletShares 2023 Corporate Bond ETF | B154: 18383M241 | C154: BSCN | G154: 2016-10-05 | H154: 2016-10-03 | I154: 2016-10-07 | J154: $0.051200 | K154: 0 | L154: 0 | M154: $0.051200 | N154: $0.051200 | O154: 0 | P154: 0 | Q154: $0.051200 | R154: 0 | S154: 0 | T154: 0 | U154: 0 | V154: 0 | W154: 0 | X154: 0 | Y154: 0 | Z154: 0 | AA154: 0 | AB154: 0 | AC154: 0 | AD154: 0 | AE154: 0.0%
A155: Guggenheim BulletShares 2023 Corporate Bond ETF | B155: 18383M241 | C155: BSCN | G155: 2016-11-03 | H155: 2016-11-01 | I155: 2016-11-07 | J155: $0.047000 | K155: 0 | L155: 0 | M155: $0.047000 | N155: $0.047000 | O155: 0 | P155: 0 | Q155: $0.047000 | R155: 0 | S155: 0 | T155: 0 | U155: 0 | V155: 0 | W155: 0 | X155: 0 | Y155: 0 | Z155: 0 | AA155: 0 | AB155: 0 | AC155: 0 | AD155: 0 | AE155: 0.0%
A156: Guggenheim BulletShares 2023 Corporate Bond ETF | B156: 18383M241 | C156: BSCN | G156: 2016-12-05 | H156: 2016-12-01 | I156: 2016-12-07 | J156: $0.054300 | K156: 0 | L156: 0 | M156: $0.054300 | N156: $0.054300 | O156: 0 | P156: 0 | Q156: $0.054300 | R156: 0 | S156: 0 | T156: 0 | U156: 0 | V156: 0 | W156: 0 | X156: 0 | Y156: 0 | Z156: 0 | AA156: 0 | AB156: 0 | AC156: 0 | AD156: 0 | AE156: 0.0%
A157: Guggenheim BulletShares 2023 Corporate Bond ETF | B157: 18383M241 | C157: BSCN | G157: 2016-12-30 | H157: 2016-12-28 | I157: 2017-01-04 | J157: $0.112800 | K157: 0 | L157: 0 | M157: $0.112800 | N157: $0.057200 | O157: $0.047400 | P157: 0 | Q157: $0.104600 | R157: 0 | S157: 0 | T157: 0 | U157: 0 | V157: $0.008200 | W157: 0 | X157: 0 | Y157: 0 | Z157: 0 | AA157: 0 | AB157: 0 | AC157: 0 | AD157: 0 | AE157: 0.0%
A158: Totals | K158: =SUM(K146:K157) -> 0 | L158: =SUM(L146:L157) -> 0 | M158: =SUM(M146:M157) -> $0.657800 | Q158: =SUM(Q146:Q157) -> $0.649600 | R158: =SUM(R146:R157) -> 0 | S158: 0 | T158: 0 | U158: 0 | V158: $0.008200 | W158: 0 | X158: 0 | Y158: 0 | Z158: 0 | AA158: 0 | AB158: 0 | AC158: 0 | AD158: 0 | AE158: 0.0%
A160: Guggenheim BulletShares 2022 Corporate Bond ETF | B160: 18383M258 | C160: BSCM | G160: 2016-02-03 | H160: 2016-02-01 | I160: 2016-02-05 | J160: =ROUND(K160+L160+M160,6) -> $0.043100 | K160: 0 | L160: 0 | M160: =ROUND(N160+O160+V160+Z160+AB160+AD160,6) -> $0.043100 | N160: $0.043100 | O160: 0 | P160: 0 | Q160: =SUM(N160:P160) -> $0.043100 | R160: 0 | S160: 0 | T160: 0 | U160: =SUM(R160:T160) -> 0 | V160: 0 | W160: 0 | X160: 0 | Y160: 0 | Z160: 0 | AA160: 0 | AB160: 0 | AC160: 0 | AD160: 0 | AE160: 0.0%
A161: Guggenheim BulletShares 2022 Corporate Bond ETF | B161: 18383M258 | C161: BSCM | G161: 2016-03-03 | H161: 2016-03-01 | I161: 2016-03-07 | J161: $0.052400 | K161: 0 | L161: 0 | M161: $0.052400 | N161: $0.052400 | O161: 0 | P161: 0 | Q161: $0.052400 | R161: 0 | S161: 0 | T161: 0 | U161: 0 | V161: 0 | W161: 0 | X161: 0 | Y161: 0 | Z161: 0 | AA161: 0 | AB161: 0 | AC161: 0 | AD161: 0 | AE161: 0.0%
A162: Guggenheim BulletShares 2022 Corporate Bond ETF | B162: 18383M258 | C162: BSCM | G162: 2016-04-05 | H162: 2016-04-01 | I162: 2016-04-07 | J162: $0.047400 | K162: 0 | L162: 0 | M162: $0.047400 | N162: $0.047400 | O162: 0 | P162: 0 | Q162: $0.047400 | R162: 0 | S162: 0 | T162: 0 | U162: 0 | V162: 0 | W162: 0 | X162: 0 | Y162: 0 | Z162: 0 | AA162: 0 | AB162: 0 | AC162: 0 | AD162: 0 | AE162: 0.0%
A163: Guggenheim BulletShares 2022 Corporate Bond ETF | B163: 18383M258 | C163: BSCM | G163: 2016-05-04 | H163: 2016-05-02 | I163: 2016-05-06 | J163: $0.043900 | K163: 0 | L163: 0 | M163: $0.043900 | N163: $0.043900 | O163: 0 | P163: 0 | Q163: $0.043900 | R163: 0 | S163: 0 | T163: 0 | U163: 0 | V163: 0 | W163: 0 | X163: 0 | Y163: 0 | Z163: 0 | AA163: 0 | AB163: 0 | AC163: 0 | AD163: 0 | AE163: 0.0%
A164: Guggenheim BulletShares 2022 Corporate Bond ETF | B164: 18383M258 | C164: BSCM | G164: 2016-06-03 | H164: 2016-06-01 | I164: 2016-06-07 | J164: $0.048500 | K164: 0 | L164: 0 | M164: $0.048500 | N164: $0.048500 | O164: 0 | P164: 0 | Q164: $0.048500 | R164: 0 | S164: 0 | T164: 0 | U164: 0 | V164: 0 | W164: 0 | X164: 0 | Y164: 0 | Z164: 0 | AA164: 0 | AB164: 0 | AC164: 0 | AD164: 0 | AE164: 0.0%
A165: Guggenheim BulletShares 2022 Corporate Bond ETF | B165: 18383M258 | C165: BSCM | G165: 2016-07-06 | H165: 2016-07-01 | I165: 2016-07-08 | J165: $0.046800 | K165: 0 | L165: 0 | M165: $0.046800 | N165: $0.046800 | O165: 0 | P165: 0 | Q165: $0.046800 | R165: 0 | S165: 0 | T165: 0 | U165: 0 | V165: 0 | W165: 0 | X165: 0 | Y165: 0 | Z165: 0 | AA165: 0 | AB165: 0 | AC165: 0 | AD165: 0 | AE165: 0.0%
A166: Guggenheim BulletShares 2022 Corporate Bond ETF | B166: 18383M258 | C166: BSCM | G166: 2016-08-03 | H166: 2016-08-01 | I166: 2016-08-05 | J166: $0.044600 | K166: 0 | L166: 0 | M166: $0.044600 | N166: $0.044600 | O166: 0 | P166: 0 | Q166: $0.044600 | R166: 0 | S166: 0 | T166: 0 | U166: 0 | V166: 0 | W166: 0 | X166: 0 | Y166: 0 | Z166: 0 | AA166: 0 | AB166: 0 | AC166: 0 | AD166: 0 | AE166: 0.0%
A167: Guggenheim BulletShares 2022 Corporate Bond ETF | B167: 18383M258 | C167: BSCM | G167: 2016-09-06 | H167: 2016-09-01 | I167: 2016-09-08 | J167: $0.048400 | K167: 0 | L167: 0 | M167: $0.048400 | N167: $0.048400 | O167: 0 | P167: 0 | Q167: $0.048400 | R167: 0 | S167: 0 | T167: 0 | U167: 0 | V167: 0 | W167: 0 | X167: 0 | Y167: 0 | Z167: 0 | AA167: 0 | AB167: 0 | AC167: 0 | AD167: 0 | AE167: 0.0%
A168: Guggenheim BulletShares 2022 Corporate Bond ETF | B168: 18383M258 | C168: BSCM | G168: 2016-10-05 | H168: 2016-10-03 | I168: 2016-10-07 | J168: $0.045900 | K168: 0 | L168: 0 | M168: $0.045900 | N168: $0.045900 | O168: 0 | P168: 0 | Q168: $0.045900 | R168: 0 | S168: 0 | T168: 0 | U168: 0 | V168: 0 | W168: 0 | X168: 0 | Y168: 0 | Z168: 0 | AA168: 0 | AB168: 0 | AC168: 0 | AD168: 0 | AE168: 0.0%
A169: Guggenheim BulletShares 2022 Corporate Bond ETF | B169: 18383M258 | C169: BSCM | G169: 2016-11-03 | H169: 2016-11-01 | I169: 2016-11-07 | J169: $0.041700 | K169: 0 | L169: 0 | M169: $0.041700 | N169: $0.041700 | O169: 0 | P169: 0 | Q169: $0.041700 | R169: 0 | S169: 0 | T169: 0 | U169: 0 | V169: 0 | W169: 0 | X169: 0 | Y169: 0 | Z169: 0 | AA169: 0 | AB169: 0 | AC169: 0 | AD169: 0 | AE169: 0.0%
A170: Guggenheim BulletShares 2022 Corporate Bond ETF | B170: 18383M258 | C170: BSCM | G170: 2016-12-05 | H170: 2016-12-01 | I170: 2016-12-07 | J170: $0.045800 | K170: 0 | L170: 0 | M170: $0.045800 | N170: $0.045800 | O170: 0 | P170: 0 | Q170: $0.045800 | R170: 0 | S170: 0 | T170: 0 | U170: 0 | V170: 0 | W170: 0 | X170: 0 | Y170: 0 | Z170: 0 | AA170: 0 | AB170: 0 | AC170: 0 | AD170: 0 | AE170: 0.0%
A171: Guggenheim BulletShares 2022 Corporate Bond ETF | B171: 18383M258 | C171: BSCM | G171: 2016-12-30 | H171: 2016-12-28 | I171: 2017-01-04 | J171: $0.055400 | K171: 0 | L171: 0 | M171: $0.055400 | N171: $0.049700 | O171: $0.005700 | P171: 0 | Q171: $0.055400 | R171: 0 | S171: 0 | T171: 0 | U171: 0 | V171: 0 | W171: 0 | X171: 0 | Y171: 0 | Z171: 0 | AA171: 0 | AB171: 0 | AC171: 0 | AD171: 0 | AE171: 0.0%
A172: Totals | K172: =SUM(K160:K171) -> 0 | L172: =SUM(L160:L171) -> 0 | M172: =SUM(M160:M171) -> $0.563900 | Q172: =SUM(Q160:Q171) -> $0.563900 | R172: 0 | S172: 0 | T172: 0 | U172: 0 | V172: 0 | W172: 0 | X172: 0 | Y172: 0 | Z172: 0 | AA172: 0 | AB172: 0 | AC172: 0 | AD172: 0 | AE172: 0.0%
A174: Guggenheim BulletShares 2021 Corporate Bond ETF | B174: 18383M266 | C174: BSCL | G174: 2016-02-03 | H174: 2016-02-01 | I174: 2016-02-05 | J174: =ROUND(K174+L174+M174,6) -> $0.039300 | K174: 0 | L174: 0 | M174: =ROUND(N174+O174+V174+Z174+AB174+AD174,6) -> $0.039300 | N174: $0.039300 | O174: 0 | P174: 0 | Q174: =SUM(N174:P174) -> $0.039300 | R174: 0 | S174: 0 | T174: 0 | U174: =SUM(R174:T174) -> 0 | V174: 0 | W174: 0 | X174: 0 | Y174: 0 | Z174: 0 | AA174: 0 | AB174: 0 | AC174: 0 | AD174: 0 | AE174: 0.0%
A175: Guggenheim BulletShares 2021 Corporate Bond ETF | B175: 18383M266 | C175: BSCL | G175: 2016-03-03 | H175: 2016-03-01 | I175: 2016-03-07 | J175: $0.045400 | K175: 0 | L175: 0 | M175: $0.045400 | N175: $0.045400 | O175: 0 | P175: 0 | Q175: $0.045400 | R175: 0 | S175: 0 | T175: 0 | U175: 0 | V175: 0 | W175: 0 | X175: 0 | Y175: 0 | Z175: 0 | AA175: 0 | AB175: 0 | AC175: 0 | AD175: 0 | AE175: 0.0%
A176: Guggenheim BulletShares 2021 Corporate Bond ETF | B176: 18383M266 | C176: BSCL | G176: 2016-04-05 | H176: 2016-04-01 | I176: 2016-04-07 | J176: $0.046400 | K176: 0 | L176: 0 | M176: $0.046400 | N176: $0.046400 | O176: 0 | P176: 0 | Q176: $0.046400 | R176: 0 | S176: 0 | T176: 0 | U176: 0 | V176: 0 | W176: 0 | X176: 0 | Y176: 0 | Z176: 0 | AA176: 0 | AB176: 0 | AC176: 0 | AD176: 0 | AE176: 0.0%
A177: Guggenheim BulletShares 2021 Corporate Bond ETF | B177: 18383M266 | C177: BSCL | G177: 2016-05-04 | H177: 2016-05-02 | I177: 2016-05-06 | J177: $0.044000 | K177: 0 | L177: 0 | M177: $0.044000 | N177: $0.044000 | O177: 0 | P177: 0 | Q177: $0.044000 | R177: 0 | S177: 0 | T177: 0 | U177: 0 | V177: 0 | W177: 0 | X177: 0 | Y177: 0 | Z177: 0 | AA177: 0 | AB177: 0 | AC177: 0 | AD177: 0 | AE177: 0.0%
A178: Guggenheim BulletShares 2021 Corporate Bond ETF | B178: 18383M266 | C178: BSCL | G178: 2016-06-03 | H178: 2016-06-01 | I178: 2016-06-07 | J178: $0.048400 | K178: 0 | L178: 0 | M178: $0.048400 | N178: $0.048400 | O178: 0 | P178: 0 | Q178: $0.048400 | R178: 0 | S178: 0 | T178: 0 | U178: 0 | V178: 0 | W178: 0 | X178: 0 | Y178: 0 | Z178: 0 | AA178: 0 | AB178: 0 | AC178: 0 | AD178: 0 | AE178: 0.0%
A179: Guggenheim BulletShares 2021 Corporate Bond ETF | B179: 18383M266 | C179: BSCL | G179: 2016-07-06 | H179: 2016-07-01 | I179: 2016-07-08 | J179: $0.043600 | K179: 0 | L179: 0 | M179: $0.043600 | N179: $0.043600 | O179: 0 | P179: 0 | Q179: $0.043600 | R179: 0 | S179: 0 | T179: 0 | U179: 0 | V179: 0 | W179: 0 | X179: 0 | Y179: 0 | Z179: 0 | AA179: 0 | AB179: 0 | AC179: 0 | AD179: 0 | AE179: 0.0%
A180: Guggenheim BulletShares 2021 Corporate Bond ETF | B180: 18383M266 | C180: BSCL | G180: 2016-08-03 | H180: 2016-08-01 | I180: 2016-08-05 | J180: $0.041400 | K180: 0 | L180: 0 | M180: $0.041400 | N180: $0.041400 | O180: 0 | P180: 0 | Q180: $0.041400 | R180: 0 | S180: 0 | T180: 0 | U180: 0 | V180: 0 | W180: 0 | X180: 0 | Y180: 0 | Z180: 0 | AA180: 0 | AB180: 0 | AC180: 0 | AD180: 0 | AE180: 0.0%
A181: Guggenheim BulletShares 2021 Corporate Bond ETF | B181: 18383M266 | C181: BSCL | G181: 2016-09-06 | H181: 2016-09-01 | I181: 2016-09-08 | J181: $0.046600 | K181: 0 | L181: 0 | M181: $0.046600 | N181: $0.046600 | O181: 0 | P181: 0 | Q181: $0.046600 | R181: 0 | S181: 0 | T181: 0 | U181: 0 | V181: 0 | W181: 0 | X181: 0 | Y181: 0 | Z181: 0 | AA181: 0 | AB181: 0 | AC181: 0 | AD181: 0 | AE181: 0.0%
A182: Guggenheim BulletShares 2021 Corporate Bond ETF | B182: 18383M266 | C182: BSCL | G182: 2016-10-05 | H182: 2016-10-03 | I182: 2016-10-07 | J182: $0.041900 | K182: 0 | L182: 0 | M182: $0.041900 | N182: $0.041900 | O182: 0 | P182: 0 | Q182: $0.041900 | R182: 0 | S182: 0 | T182: 0 | U182: 0 | V182: 0 | W182: 0 | X182: 0 | Y182: 0 | Z182: 0 | AA182: 0 | AB182: 0 | AC182: 0 | AD182: 0 | AE182: 0.0%
A183: Guggenheim BulletShares 2021 Corporate Bond ETF | B183: 18383M266 | C183: BSCL | G183: 2016-11-03 | H183: 2016-11-01 | I183: 2016-11-07 | J183: $0.038700 | K183: 0 | L183: 0 | M183: $0.038700 | N183: $0.038700 | O183: 0 | P183: 0 | Q183: $0.038700 | R183: 0 | S183: 0 | T183: 0 | U183: 0 | V183: 0 | W183: 0 | X183: 0 | Y183: 0 | Z183: 0 | AA183: 0 | AB183: 0 | AC183: 0 | AD183: 0 | AE183: 0.0%
A184: Guggenheim BulletShares 2021 Corporate Bond ETF | B184: 18383M266 | C184: BSCL | G184: 2016-12-05 | H184: 2016-12-01 | I184: 2016-12-07 | J184: $0.042700 | K184: 0 | L184: 0 | M184: $0.042700 | N184: $0.042700 | O184: 0 | P184: 0 | Q184: $0.042700 | R184: 0 | S184: 0 | T184: 0 | U184: 0 | V184: 0 | W184: 0 | X184: 0 | Y184: 0 | Z184: 0 | AA184: 0 | AB184: 0 | AC184: 0 | AD184: 0 | AE184: 0.0%
A185: Guggenheim BulletShares 2021 Corporate Bond ETF | B185: 18383M266 | C185: BSCL | G185: 2016-12-30 | H185: 2016-12-28 | I185: 2017-01-04 | J185: $0.053900 | K185: 0 | L185: 0 | M185: $0.053900 | N185: $0.045600 | O185: $0.008300 | P185: 0 | Q185: $0.053900 | R185: 0 | S185: 0 | T185: 0 | U185: 0 | V185: 0 | W185: 0 | X185: 0 | Y185: 0 | Z185: 0 | AA185: 0 | AB185: 0 | AC185: 0 | AD185: 0 | AE185: 0.0%
A186: Totals | K186: =SUM(K174:K185) -> 0 | L186: =SUM(L174:L185) -> 0 | M186: =SUM(M174:M185) -> $0.532300 | Q186: =SUM(Q174:Q185) -> $0.532300 | R186: 0 | S186: 0 | T186: 0 | U186: 0 | V186: 0 | W186: 0 | X186: 0 | Y186: 0 | Z186: 0 | AA186: 0 | AB186: 0 | AC186: 0 | AD186: 0 | AE186: 0.0%
A188: Guggenheim BulletShares 2020 Corporate Bond ETF | B188: 18383M514 | C188: BSCK | G188: 2016-02-03 | H188: 2016-02-01 | I188: 2016-02-05 | J188: =ROUND(K188+L188+M188,6) -> $0.036500 | K188: 0 | L188: 0 | M188: =ROUND(N188+O188+V188+Z188+AB188+AD188,6) -> $0.036500 | N188: $0.036500 | O188: 0 | P188: 0 | Q188: =SUM(N188:P188) -> $0.036500 | R188: 0 | S188: 0 | T188: 0 | U188: =SUM(R188:T188) -> 0 | V188: 0 | W188: 0 | X188: 0 | Y188: 0 | Z188: 0 | AA188: 0 | AB188: 0 | AC188: 0 | AD188: 0 | AE188: 0.0%
A189: Guggenheim BulletShares 2020 Corporate Bond ETF | B189: 18383M514 | C189: BSCK | G189: 2016-03-03 | H189: 2016-03-01 | I189: 2016-03-07 | J189: $0.042200 | K189: 0 | L189: 0 | M189: $0.042200 | N189: $0.042200 | O189: 0 | P189: 0 | Q189: $0.042200 | R189: 0 | S189: 0 | T189: 0 | U189: 0 | V189: 0 | W189: 0 | X189: 0 | Y189: 0 | Z189: 0 | AA189: 0 | AB189: 0 | AC189: 0 | AD189: 0 | AE189: 0.0%
A190: Guggenheim BulletShares 2020 Corporate Bond ETF | B190: 18383M514 | C190: BSCK | G190: 2016-04-05 | H190: 2016-04-01 | I190: 2016-04-07 | J190: $0.041800 | K190: 0 | L190: 0 | M190: $0.041800 | N190: $0.041800 | O190: 0 | P190: 0 | Q190: $0.041800 | R190: 0 | S190: 0 | T190: 0 | U190: 0 | V190: 0 | W190: 0 | X190: 0 | Y190: 0 | Z190: 0 | AA190: 0 | AB190: 0 | AC190: 0 | AD190: 0 | AE190: 0.0%
A191: Guggenheim BulletShares 2020 Corporate Bond ETF | B191: 18383M514 | C191: BSCK | G191: 2016-05-04 | H191: 2016-05-02 | I191: 2016-05-06 | J191: $0.038800 | K191: 0 | L191: 0 | M191: $0.038800 | N191: $0.038800 | O191: 0 | P191: 0 | Q191: $0.038800 | R191: 0 | S191: 0 | T191: 0 | U191: 0 | V191: 0 | W191: 0 | X191: 0 | Y191: 0 | Z191: 0 | AA191: 0 | AB191: 0 | AC191: 0 | AD191: 0 | AE191: 0.0%
A192: Guggenheim BulletShares 2020 Corporate Bond ETF | B192: 18383M514 | C192: BSCK | G192: 2016-06-03 | H192: 2016-06-01 | I192: 2016-06-07 | J192: $0.041900 | K192: 0 | L192: 0 | M192: $0.041900 | N192: $0.041900 | O192: 0 | P192: 0 | Q192: $0.041900 | R192: 0 | S192: 0 | T192: 0 | U192: 0 | V192: 0 | W192: 0 | X192: 0 | Y192: 0 | Z192: 0 | AA192: 0 | AB192: 0 | AC192: 0 | AD192: 0 | AE192: 0.0%
A193: Guggenheim BulletShares 2020 Corporate Bond ETF | B193: 18383M514 | C193: BSCK | G193: 2016-07-06 | H193: 2016-07-01 | I193: 2016-07-08 | J193: $0.038100 | K193: 0 | L193: 0 | M193: $0.038100 | N193: $0.038100 | O193: 0 | P193: 0 | Q193: $0.038100 | R193: 0 | S193: 0 | T193: 0 | U193: 0 | V193: 0 | W193: 0 | X193: 0 | Y193: 0 | Z193: 0 | AA193: 0 | AB193: 0 | AC193: 0 | AD193: 0 | AE193: 0.0%
A194: Guggenheim BulletShares 2020 Corporate Bond ETF | B194: 18383M514 | C194: BSCK | G194: 2016-08-03 | H194: 2016-08-01 | I194: 2016-08-05 | J194: $0.036600 | K194: 0 | L194: 0 | M194: $0.036600 | N194: $0.036600 | O194: 0 | P194: 0 | Q194: $0.036600 | R194: 0 | S194: 0 | T194: 0 | U194: 0 | V194: 0 | W194: 0 | X194: 0 | Y194: 0 | Z194: 0 | AA194: 0 | AB194: 0 | AC194: 0 | AD194: 0 | AE194: 0.0%
A195: Guggenheim BulletShares 2020 Corporate Bond ETF | B195: 18383M514 | C195: BSCK | G195: 2016-09-06 | H195: 2016-09-01 | I195: 2016-09-08 | J195: $0.041200 | K195: 0 | L195: 0 | M195: $0.041200 | N195: $0.041200 | O195: 0 | P195: 0 | Q195: $0.041200 | R195: 0 | S195: 0 | T195: 0 | U195: 0 | V195: 0 | W195: 0 | X195: 0 | Y195: 0 | Z195: 0 | AA195: 0 | AB195: 0 | AC195: 0 | AD195: 0 | AE195: 0.0%
A196: Guggenheim BulletShares 2020 Corporate Bond ETF | B196: 18383M514 | C196: BSCK | G196: 2016-10-05 | H196: 2016-10-03 | I196: 2016-10-07 | J196: $0.037600 | K196: 0 | L196: 0 | M196: $0.037600 | N196: $0.037600 | O196: 0 | P196: 0 | Q196: $0.037600 | R196: 0 | S196: 0 | T196: 0 | U196: 0 | V196: 0 | W196: 0 | X196: 0 | Y196: 0 | Z196: 0 | AA196: 0 | AB196: 0 | AC196: 0 | AD196: 0 | AE196: 0.0%
A197: Guggenheim BulletShares 2020 Corporate Bond ETF | B197: 18383M514 | C197: BSCK | G197: 2016-11-03 | H197: 2016-11-01 | I197: 2016-11-07 | J197: $0.035400 | K197: 0 | L197: 0 | M197: $0.035400 | N197: $0.035400 | O197: 0 | P197: 0 | Q197: =SUM(N197:P197) -> $0.035400 | R197: 0 | S197: 0 | T197: 0 | U197: =SUM(R197:T197) -> 0 | V197: 0 | W197: 0 | X197: 0 | Y197: 0 | Z197: 0 | AA197: 0 | AB197: 0 | AC197: 0 | AD197: 0 | AE197: 0.0%
A198: Guggenheim BulletShares 2020 Corporate Bond ETF | B198: 18383M514 | C198: BSCK | G198: 2016-12-05 | H198: 2016-12-01 | I198: 2016-12-07 | J198: $0.040800 | K198: 0 | L198: 0 | M198: $0.040800 | N198: $0.040800 | O198: 0 | P198: 0 | Q198: =SUM(N198:P198) -> $0.040800 | R198: 0 | S198: 0 | T198: 0 | U198: =SUM(R198:T198) -> 0 | V198: 0 | W198: 0 | X198: 0 | Y198: 0 | Z198: 0 | AA198: 0 | AB198: 0 | AC198: 0 | AD198: 0 | AE198: 0.0%
A199: Guggenheim BulletShares 2020 Corporate Bond ETF | B199: 18383M514 | C199: BSCK | G199: 2016-12-30 | H199: 2016-12-28 | I199: 2017-01-04 | J199: $0.047800 | K199: 0 | L199: 0 | M199: $0.047800 | N199: $0.047600 | O199: $0.000200 | P199: 0 | Q199: =SUM(N199:P199) -> $0.047800 | R199: 0 | S199: 0 | T199: 0 | U199: =SUM(R199:T199) -> 0 | V199: 0 | W199: 0 | X199: 0 | Y199: 0 | Z199: 0 | AA199: 0 | AB199: 0 | AC199: 0 | AD199: 0 | AE199: 0.0%
A200: Totals | K200: =SUM(K188:K199) -> 0 | L200: =SUM(L188:L199) -> 0 | M200: =SUM(M188:M199) -> $0.478700 | Q200: =SUM(Q188:Q199) -> $0.478700 | R200: 0 | S200: 0 | T200: 0 | U200: 0 | V200: 0 | W200: 0 | X200: 0 | Y200: 0 | Z200: 0 | AA200: 0 | AB200: 0 | AC200: 0 | AD200: 0 | AE200: 0.0%
A202: Guggenheim BulletShares 2019 Corporate Bond ETF | B202: 18383M522 | C202: BSCJ | G202: 2016-02-03 | H202: 2016-02-01 | I202: 2016-02-05 | J202: =ROUND(K202+L202+M202,6) -> $0.030700 | K202: 0 | L202: 0 | M202: =ROUND(N202+O202+V202+Z202+AB202+AD202,6) -> $0.030700 | N202: $0.030700 | O202: 0 | P202: 0 | Q202: =SUM(N202:P202) -> $0.030700 | R202: 0 | S202: 0 | T202: 0 | U202: =SUM(R202:T202) -> 0 | V202: 0 | W202: 0 | X202: 0 | Y202: 0 | Z202: 0 | AA202: 0 | AB202: 0 | AC202: 0 | AD202: 0 | AE202: 0.0%
A203: Guggenheim BulletShares 2019 Corporate Bond ETF | B203: 18383M522 | C203: BSCJ | G203: 2016-03-03 | H203: 2016-03-01 | I203: 2016-03-07 | J203: $0.034900 | K203: 0 | L203: 0 | M203: $0.034900 | N203: $0.034900 | O203: 0 | P203: 0 | Q203: $0.034900 | R203: 0 | S203: 0 | T203: 0 | U203: 0 | V203: 0 | W203: 0 | X203: 0 | Y203: 0 | Z203: 0 | AA203: 0 | AB203: 0 | AC203: 0 | AD203: 0 | AE203: 0.0%
A204: Guggenheim BulletShares 2019 Corporate Bond ETF | B204: 18383M522 | C204: BSCJ | G204: 2016-04-05 | H204: 2016-04-01 | I204: 2016-04-07 | J204: $0.036000 | K204: 0 | L204: 0 | M204: $0.036000 | N204: $0.036000 | O204: 0 | P204: 0 | Q204: $0.036000 | R204: 0 | S204: 0 | T204: 0 | U204: 0 | V204: 0 | W204: 0 | X204: 0 | Y204: 0 | Z204: 0 | AA204: 0 | AB204: 0 | AC204: 0 | AD204: 0 | AE204: 0.0%
A205: Guggenheim BulletShares 2019 Corporate Bond ETF | B205: 18383M522 | C205: BSCJ | G205: 2016-05-04 | H205: 2016-05-02 | I205: 2016-05-06 | J205: $0.032500 | K205: 0 | L205: 0 | M205: $0.032500 | N205: $0.032500 | O205: 0 | P205: 0 | Q205: $0.032500 | R205: 0 | S205: 0 | T205: 0 | U205: 0 | V205: 0 | W205: 0 | X205: 0 | Y205: 0 | Z205: 0 | AA205: 0 | AB205: 0 | AC205: 0 | AD205: 0 | AE205: 0.0%
A206: Guggenheim BulletShares 2019 Corporate Bond ETF | B206: 18383M522 | C206: BSCJ | G206: 2016-06-03 | H206: 2016-06-01 | I206: 2016-06-07 | J206: $0.035500 | K206: 0 | L206: 0 | M206: $0.035500 | N206: $0.035500 | O206: 0 | P206: 0 | Q206: $0.035500 | R206: 0 | S206: 0 | T206: 0 | U206: 0 | V206: 0 | W206: 0 | X206: 0 | Y206: 0 | Z206: 0 | AA206: 0 | AB206: 0 | AC206: 0 | AD206: 0 | AE206: 0.0%
A207: Guggenheim BulletShares 2019 Corporate Bond ETF | B207: 18383M522 | C207: BSCJ | G207: 2016-07-06 | H207: 2016-07-01 | I207: 2016-07-08 | J207: $0.033500 | K207: 0 | L207: 0 | M207: $0.033500 | N207: $0.033500 | O207: 0 | P207: 0 | Q207: $0.033500 | R207: 0 | S207: 0 | T207: 0 | U207: 0 | V207: 0 | W207: 0 | X207: 0 | Y207: 0 | Z207: 0 | AA207: 0 | AB207: 0 | AC207: 0 | AD207: 0 | AE207: 0.0%
A208: Guggenheim BulletShares 2019 Corporate Bond ETF | B208: 18383M522 | C208: BSCJ | G208: 2016-08-03 | H208: 2016-08-01 | I208: 2016-08-05 | J208: $0.032100 | K208: 0 | L208: 0 | M208: $0.032100 | N208: $0.032100 | O208: 0 | P208: 0 | Q208: $0.032100 | R208: 0 | S208: 0 | T208: 0 | U208: 0 | V208: 0 | W208: 0 | X208: 0 | Y208: 0 | Z208: 0 | AA208: 0 | AB208: 0 | AC208: 0 | AD208: 0 | AE208: 0.0%
A209: Guggenheim BulletShares 2019 Corporate Bond ETF | B209: 18383M522 | C209: BSCJ | G209: 2016-09-06 | H209: 2016-09-01 | I209: 2016-09-08 | J209: $0.035800 | K209: 0 | L209: 0 | M209: $0.035800 | N209: $0.035800 | O209: 0 | P209: 0 | Q209: $0.035800 | R209: 0 | S209: 0 | T209: 0 | U209: 0 | V209: 0 | W209: 0 | X209: 0 | Y209: 0 | Z209: 0 | AA209: 0 | AB209: 0 | AC209: 0 | AD209: 0 | AE209: 0.0%
A210: Guggenheim BulletShares 2019 Corporate Bond ETF | B210: 18383M522 | C210: BSCJ | G210: 2016-10-05 | H210: 2016-10-03 | I210: 2016-10-07 | J210: $0.032300 | K210: 0 | L210: 0 | M210: $0.032300 | N210: $0.032300 | O210: 0 | P210: 0 | Q210: $0.032300 | R210: 0 | S210: 0 | T210: 0 | U210: 0 | V210: 0 | W210: 0 | X210: 0 | Y210: 0 | Z210: 0 | AA210: 0 | AB210: 0 | AC210: 0 | AD210: 0 | AE210: 0.0%
A211: Guggenheim BulletShares 2019 Corporate Bond ETF | B211: 18383M522 | C211: BSCJ | G211: 2016-11-03 | H211: 2016-11-01 | I211: 2016-11-07 | J211: $0.029800 | K211: 0 | L211: 0 | M211: $0.029800 | N211: $0.029800 | O211: 0 | P211: 0 | Q211: $0.029800 | R211: 0 | S211: 0 | T211: 0 | U211: 0 | V211: 0 | W211: 0 | X211: 0 | Y211: 0 | Z211: 0 | AA211: 0 | AB211: 0 | AC211: 0 | AD211: 0 | AE211: 0.0%
A212: Guggenheim BulletShares 2019 Corporate Bond ETF | B212: 18383M522 | C212: BSCJ | G212: 2016-12-05 | H212: 2016-12-01 | I212: 2016-12-07 | J212: $0.032200 | K212: 0 | L212: 0 | M212: $0.032200 | N212: $0.032200 | O212: 0 | P212: 0 | Q212: $0.032200 | R212: 0 | S212: 0 | T212: 0 | U212: 0 | V212: 0 | W212: 0 | X212: 0 | Y212: 0 | Z212: 0 | AA212: 0 | AB212: 0 | AC212: 0 | AD212: 0 | AE212: 0.0%
A213: Guggenheim BulletShares 2019 Corporate Bond ETF | B213: 18383M522 | C213: BSCJ | G213: 2016-12-30 | H213: 2016-12-28 | I213: 2017-01-04 | J213: $0.034700 | K213: 0 | L213: 0 | M213: $0.034700 | N213: $0.034700 | O213: 0 | P213: 0 | Q213: $0.034700 | R213: 0 | S213: 0 | T213: 0 | U213: 0 | V213: 0 | W213: 0 | X213: 0 | Y213: 0 | Z213: 0 | AA213: 0 | AB213: 0 | AC213: 0 | AD213: 0 | AE213: 0.0%
A214: Totals | K214: =SUM(K202:K213) -> 0 | L214: =SUM(L202:L213) -> 0 | M214: =SUM(M202:M213) -> $0.400000 | Q214: =SUM(Q202:Q213) -> $0.400000 | R214: 0 | S214: 0 | T214: 0 | U214: 0 | V214: 0 | W214: 0 | X214: 0 | Y214: 0 | Z214: 0 | AA214: 0 | AB214: 0 | AC214: 0 | AD214: 0 | AE214: 0.0%
A216: Guggenheim BulletShares 2018 Corporate Bond ETF | B216: 18383M530 | C216: BSCI | G216: 2016-02-03 | H216: 2016-02-01 | I216: 2016-02-05 | J216: =ROUND(K216+L216+M216,6) -> $0.025800 | K216: 0 | L216: 0 | M216: =ROUND(N216+O216+V216+Z216+AB216+AD216,6) -> $0.025800 | N216: $0.025800 | O216: 0 | P216: 0 | Q216: =SUM(N216:P216) -> $0.025800 | R216: 0 | S216: 0 | T216: 0 | U216: =SUM(R216:T216) -> 0 | V216: 0 | W216: 0 | X216: 0 | Y216: 0 | Z216: 0 | AA216: 0 | AB216: 0 | AC216: 0 | AD216: 0 | AE216: 0.0%
A217: Guggenheim BulletShares 2018 Corporate Bond ETF | B217: 18383M530 | C217: BSCI | G217: 2016-03-03 | H217: 2016-03-01 | I217: 2016-03-07 | J217: $0.028800 | K217: 0 | L217: 0 | M217: $0.028800 | N217: $0.028800 | O217: 0 | P217: 0 | Q217: $0.028800 | R217: 0 | S217: 0 | T217: 0 | U217: 0 | V217: 0 | W217: 0 | X217: 0 | Y217: 0 | Z217: 0 | AA217: 0 | AB217: 0 | AC217: 0 | AD217: 0 | AE217: 0.0%
A218: Guggenheim BulletShares 2018 Corporate Bond ETF | B218: 18383M530 | C218: BSCI | G218: 2016-04-05 | H218: 2016-04-01 | I218: 2016-04-07 | J218: $0.030600 | K218: 0 | L218: 0 | M218: $0.030600 | N218: $0.030600 | O218: 0 | P218: 0 | Q218: $0.030600 | R218: 0 | S218: 0 | T218: 0 | U218: 0 | V218: 0 | W218: 0 | X218: 0 | Y218: 0 | Z218: 0 | AA218: 0 | AB218: 0 | AC218: 0 | AD218: 0 | AE218: 0.0%
A219: Guggenheim BulletShares 2018 Corporate Bond ETF | B219: 18383M530 | C219: BSCI | G219: 2016-05-04 | H219: 2016-05-02 | I219: 2016-05-06 | J219: $0.027600 | K219: 0 | L219: 0 | M219: $0.027600 | N219: $0.027600 | O219: 0 | P219: 0 | Q219: $0.027600 | R219: 0 | S219: 0 | T219: 0 | U219: 0 | V219: 0 | W219: 0 | X219: 0 | Y219: 0 | Z219: 0 | AA219: 0 | AB219: 0 | AC219: 0 | AD219: 0 | AE219: 0.0%
A220: Guggenheim BulletShares 2018 Corporate Bond ETF | B220: 18383M530 | C220: BSCI | G220: 2016-06-03 | H220: 2016-06-01 | I220: 2016-06-07 | J220: $0.029000 | K220: 0 | L220: 0 | M220: $0.029000 | N220: $0.029000 | O220: 0 | P220: 0 | Q220: $0.029000 | R220: 0 | S220: 0 | T220: 0 | U220: 0 | V220: 0 | W220: 0 | X220: 0 | Y220: 0 | Z220: 0 | AA220: 0 | AB220: 0 | AC220: 0 | AD220: 0 | AE220: 0.0%
A221: Guggenheim BulletShares 2018 Corporate Bond ETF | B221: 18383M530 | C221: BSCI | G221: 2016-07-06 | H221: 2016-07-01 | I221: 2016-07-08 | J221: $0.027100 | K221: 0 | L221: 0 | M221: $0.027100 | N221: $0.027100 | O221: 0 | P221: 0 | Q221: $0.027100 | R221: 0 | S221: 0 | T221: 0 | U221: 0 | V221: 0 | W221: 0 | X221: 0 | Y221: 0 | Z221: 0 | AA221: 0 | AB221: 0 | AC221: 0 | AD221: 0 | AE221: 0.0%
A222: Guggenheim BulletShares 2018 Corporate Bond ETF | B222: 18383M530 | C222: BSCI | G222: 2016-08-03 | H222: 2016-08-01 | I222: 2016-08-05 | J222: $0.025700 | K222: 0 | L222: 0 | M222: $0.025700 | N222: $0.025700 | O222: 0 | P222: 0 | Q222: $0.025700 | R222: 0 | S222: 0 | T222: 0 | U222: 0 | V222: 0 | W222: 0 | X222: 0 | Y222: 0 | Z222: 0 | AA222: 0 | AB222: 0 | AC222: 0 | AD222: 0 | AE222: 0.0%
A223: Guggenheim BulletShares 2018 Corporate Bond ETF | B223: 18383M530 | C223: BSCI | G223: 2016-09-06 | H223: 2016-09-01 | I223: 2016-09-08 | J223: $0.028800 | K223: 0 | L223: 0 | M223: $0.028800 | N223: $0.028800 | O223: 0 | P223: 0 | Q223: $0.028800 | R223: 0 | S223: 0 | T223: 0 | U223: 0 | V223: 0 | W223: 0 | X223: 0 | Y223: 0 | Z223: 0 | AA223: 0 | AB223: 0 | AC223: 0 | AD223: 0 | AE223: 0.0%
A224: Guggenheim BulletShares 2018 Corporate Bond ETF | B224: 18383M530 | C224: BSCI | G224: 2016-10-05 | H224: 2016-10-03 | I224: 2016-10-07 | J224: $0.026500 | K224: 0 | L224: 0 | M224: $0.026500 | N224: $0.026500 | O224: 0 | P224: 0 | Q224: $0.026500 | R224: 0 | S224: 0 | T224: 0 | U224: 0 | V224: 0 | W224: 0 | X224: 0 | Y224: 0 | Z224: 0 | AA224: 0 | AB224: 0 | AC224: 0 | AD224: 0 | AE224: 0.0%
A225: Guggenheim BulletShares 2018 Corporate Bond ETF | B225: 18383M530 | C225: BSCI | G225: 2016-11-03 | H225: 2016-11-01 | I225: 2016-11-07 | J225: $0.024600 | K225: 0 | L225: 0 | M225: $0.024600 | N225: $0.024600 | O225: 0 | P225: 0 | Q225: $0.024600 | R225: 0 | S225: 0 | T225: 0 | U225: 0 | V225: 0 | W225: 0 | X225: 0 | Y225: 0 | Z225: 0 | AA225: 0 | AB225: 0 | AC225: 0 | AD225: 0 | AE225: 0.0%
A226: Guggenheim BulletShares 2018 Corporate Bond ETF | B226: 18383M530 | C226: BSCI | G226: 2016-12-05 | H226: 2016-12-01 | I226: 2016-12-07 | J226: $0.027100 | K226: 0 | L226: 0 | M226: $0.027100 | N226: $0.027100 | O226: 0 | P226: 0 | Q226: $0.027100 | R226: 0 | S226: 0 | T226: 0 | U226: 0 | V226: 0 | W226: 0 | X226: 0 | Y226: 0 | Z226: 0 | AA226: 0 | AB226: 0 | AC226: 0 | AD226: 0 | AE226: 0.0%
A227: Guggenheim BulletShares 2018 Corporate Bond ETF | B227: 18383M530 | C227: BSCI | G227: 2016-12-30 | H227: 2016-12-28 | I227: 2017-01-04 | J227: $0.029700 | K227: 0 | L227: 0 | M227: $0.029700 | N227: $0.029700 | O227: 0 | P227: 0 | Q227: $0.029700 | R227: 0 | S227: 0 | T227: 0 | U227: 0 | V227: 0 | W227: 0 | X227: 0 | Y227: 0 | Z227: 0 | AA227: 0 | AB227: 0 | AC227: 0 | AD227: 0 | AE227: 0.0%
A228: Totals | K228: =SUM(K216:K227) -> 0 | L228: =SUM(L216:L227) -> 0 | M228: =SUM(M216:M227) -> $0.331300 | Q228: =SUM(Q216:Q227) -> $0.331300 | R228: 0 | S228: 0 | T228: 0 | U228: 0 | V228: 0 | W228: 0 | X228: 0 | Y228: 0 | Z228: 0 | AA228: 0 | AB228: 0 | AC228: 0 | AD228: 0 | AE228: 0.0%
... 233 more rows

Sheet Secondary
A1: Secondary Layout Report Date: | C1: 2017-01-23 | E1: TARGET DELIVERY DATE: JANUARY 23, 2017
A3: This spreadsheet and the accompanying instructions do not constitute, and should not be considered a substitute for, legal advice. The rules governing the proper tax characterization of distributions by mutual funds can be complex. Each fund should consult its own tax advisor regarding the proper tax characterization and reporting of the fund's distributions.
A6: Please list Securities in Cusip Order
A7: (Skip Rows Between Entries) | D7: Expressed as an annual percentage with six (6) digits after the decimal point.
A8: 1 | B8: 2 | C8: 3 | D8: 4 | E8: 5 | F8: 6 | G8: =F8+1 -> 7 | H8: =G8+1 -> 8 | I8: 9 | J8: 10 | K8: 11 | L8: 12 | M8: =L8+1 -> 13 | N8: 14 | O8: 15 | P8: 16 | Q8: 17 | R8: 18 | S8: 19 | T8: 20 | U8: 21 | V8: 22 | W8: 23 | X8: 24 | Y8: 25 | Z8: 26 | AA8: 27 | AB8: 28 | AC8: 29 | AD8: 30 | AE8: 31 | AF8: 32 | AG8: 33 | AH8: 34 | AI8: 35 | AJ8: 36 | AK8: 37 | AL8: 38 | AM8: 39 | AN8: 40 | AO8: 41 | AP8: 42 | AQ8: 43 | AR8: 44 | AS8: 45 | AT8: 46 | AU8: 47 | AV8: 48 | AW8: =AV8+1 -> 49 | AX8: =AW8+1 -> 50 | AY8: 51 | AZ8: 52 | BA8: 53 | BB8: 54 | BC8: 55 | BD8: 56 | BE8: 57 | BF8: 58 | BG8: 59 | BH8: 60 | BI8: 61 | BJ8: 62 | BK8: 63 | BL8: 64 | BM8: 65 | BN8: 66 | BO8: 67 | BP8: =BO8+1 -> 68 | BQ8: 69 | BR8: 70 | BS8: 71 | BT8: 72 | BU8: 73 | BV8: 74 | BW8: 75 | BX8: 76 | BY8: 77 | BZ8: 78 | CA8: 79 | CB8: 80 | CC8: 81
D9: Reserved | E9: Creditable | F9: Foreign | G9: Optional | H9: Optional | I9: Threshold | J9: Threshold | K9: % of Income | BQ9: Optional | BS9: Optional | BW9: Optional | CA9: Optional
E10: Tax | F10: Source | G10: Foreign Source Income | H10: Foreign Qualified | I10: Requirements | J10: Requirements | K10: From Exempt | L10: % of Taxable | BS10: DIRECT FEDERAL OBLIGATIONS | BX10: INDIRECT FEDERAL OBLIGATIONS
E11: Reportable | F11: Income: | G11: (% of Primary Layout Box 1a, Col. 17) | H11: Dividend Income: | I11: For Exempt Interest | J11: For State and | K11: Federal Securities: | L11: Distribution | AW11: Northern | BV11: Other | BZ11: Other
E12: on | F12: % of Box 1a, | G12: as adjusted for IRC | H12: % of Box 1a, | I12: Dividends from Federal | J12: Local Exempt Interest | K12: % of Box 1a, | L12: Eligible for the | AW12: Mariana | BH12: US Virgin | BT12: Student Loan | BU12: Tennessee | BV12: Direct | BY12: Federal Home | BZ12: Indirect | CA12: Repurchase | CB12: RI Five-Year | CC12: Supplemental
A13: Security Description | C13: Ticker | E13: IRS Form | F13: Col. 17 on | G13: 904(b)(2)(B) type limitation | H13: Col. 17 on | I13: Obligations Not Satisfied | J13: Dividends Not Satisfied | K13: Col. 17 on Primary | L13: Dividend Received | X13: Guam | AW13: Islands | BB13: Puerto Rico | BH13: Islands | BR13: Federal Farm | BS13: Federal Home | BT13: Marketing | BU13: Valley | BV13: Federal | BY13: Loan Mortgage | BZ13: Federal | CA13: Agreements | CB13: Capital Gains | CC13: Information
A14: (Fund and Class) | B14: CUSIP | C14: Symbol | E14: 8912 | F14: Primary Layout | G14: for foreign QDI | H14: Primary Layout | I14: (Indicate by State) | J14: (Indicate by State) | K14: Layout | L14: Deduction | M14: AL | N14: AK | O14: AZ | P14: AR | Q14: CA | R14: CO | S14: CT | T14: DE | U14: DC | V14: FL | W14: GA | X14: GQ | Y14: HI | Z14: ID | AA14: IL | AB14: IN | AC14: IA | AD14: KS | AE14: KY | AF14: LA | AG14: ME | AH14: MD | AI14: MA | AJ14: MI | AK14: MN | AL14: MS | AM14: MO | AN14: MT | AO14: NE | AP14: NV | AQ14: NH | AR14: NJ | AS14: NM | AT14: NY | AU14: NC | AV14: ND | AW14: CQ | AX14: OH | AY14: OK | AZ14: OR | BA14: PA | BB14: RQ | BC14: RI | BD14: SC | BE14: SD | BF14: TN | BG14: TX | BH14: VQ | BI14: UT | BJ14: VT | BK14: VA | BL14: WA | BM14: WV | BN14: WI | BO14: WY | BP14: Other | BQ14: U.S. Treasury | BR14: Credit Banks | BS14: Loan Banks | BT14: Association | BU14: Authority | BV14: Obligations | BW14: GNMA | BX14: FNMA | BY14: Corp | BZ14: Obligations | CA14: Income | CC14: Statement
A15: Guggenheim Canadian Energy Income ETF | B15: 18383Q606 | C15: ENY | F15: 68.417985% | K15: 0.000000% | L15: 0.00%
A17: Guggenheim Shipping ETF | B17: 18383Q796 | C17: SEA | F17: 53.498042% | K17: 0.000000% | L17: 1.45%
A19: Guggenheim International Multi-Asset Income ETF | B19: 18383Q804 | C19: HGI | F19: 71.847364% | K19: 0.000000% | L19: 25.37%
A21: Guggenheim Frontier Markets ETF | B21: 18383Q838 | C21: FRN | F21: 92.609929% | K21: 0.000000% | L21: 1.29%
A23: Guggenheim China Small Cap ETF | B23: 18383Q853 | C23: HAO | F23: 85.303499% | K23: 0.000000% | L23: 0.00%
A25: Guggenheim China Real Estate ETF | B25: 18383Q861 | C25: TAO | F25: 91.718883% | K25: 0.000000% | L25: 0.00%
A27: Guggenheim MSCI Global Timber ETF | B27: 18383Q879 | C27: CUT | F27: 70.012210% | K27: 0.000000% | L27: 44.31%
A29: Guggenheim BulletShares 2022 High Yield Corporate Bond ETF | B29: 18383M217 | C29: BSJM | F29: 0.000000% | K29: 0.0000% | L29: 0.00%
A31: Guggenheim BulletShares 2021 High Yield Corporate Bond ETF | B31: 18383M225 | C31: BSJL | F31: 0.000000% | K31: 0.0000% | L31: 0.00%
A33: Guggenheim BulletShares 2020 High Yield Corporate Bond ETF | B33: 18383M365 | C33: BSJK | F33: 0.000000% | K33: 0.0000% | L33: 0.00%
A35: Guggenheim BulletShares 2019 High Yield Corporate Bond ETF | B35: 18383M373 | C35: BSJJ | F35: 0.000000% | K35: 0.0000% | L35: 0.00%
A37: Guggenheim BulletShares 2018 High Yield Corporte Bond ETF | B37: 18383M381 | C37: BSJI | F37: 0.000000% | K37: 0.0000% | L37: 0.00%
A39: Guggenheim BulletShares 2017 High Yield Corporate Bond ETF | B39: 18383M399 | C39: BSJH | F39: 0.000000% | K39: 0.0000% | L39: 0.00%
A41: Guggenheim BulletShares 2024 Corporate Bond ETF | B41: 18383M233 | C41: BSCO | F41: 0.000000% | K41: 0.0000% | L41: 0.00%
A43: Guggenheim BulletShares 2023 Corporate Bond ETF | B43: 18383M241 | C43: BSCN | F43: 0.000000% | K43: 0.0000% | L43: 0.00%
A45: Guggenheim BulletShares 2022 Corporate Bond ETF | B45: 18383M258 | C45: BSCM | F45: 0.000000% | K45: 0.0000% | L45: 0.00%
A47: Guggenheim BulletShares 2021 Corporate Bond ETF | B47: 18383M266 | C47: BSCL | F47: 0.000000% | K47: 0.0000% | L47: 0.00%
A49: Guggenheim BulletShares 2020 Corporate Bond ETF | B49: 18383M514 | C49: BSCK | F49: 0.000000% | K49: 0.0000% | L49: 0.00%
A51: Guggenheim BulletShares 2019 Corporate Bond ETF | B51: 18383M522 | C51: BSCJ | F51: 0.000000% | K51: 0.0000% | L51: 0.00%
A53: Guggenheim BulletShares 2018 Corporate Bond ETF | B53: 18383M530 | C53: BSCI | F53: 0.000000% | K53: 0.000000% | L53: 0.00%
A55: Guggenheim BulletShares 2017 Corporate Bond ETF | B55: 18383M548 | C55: BSCH | F55: 0.000000% | K55: 0.000000% | L55: 0.00%
A57: Guggenheim Enhanced Short Duration ETF | B57: 18383M654 | C57: GSY | F57: 0.000000% | I57: CA, CT, NY | K57: =0.00300668+0.01100222 -> 1.400890% | L57: 0.00% | BQ57: 1.100222% | BS57: 0.300668% | CA57: 16.352310%
A59: Guggenheim S&P Global Dividend Opportunities Index ETF | B59: 18383M860 | C59: LVL | F59: 50.738558% | K59: 0.000000% | L59: 19.17%
A61: Guggenheim Bulletshares 2023 High Yield Corporate Bond ETF | B61: 18383M183 | C61: BSJN | F61: 0.000000% | K61: 0.000000% | L61: 0.00%
A63: Guggenheim Bulletshares 2025 Corporate Bond ETF | B63: 18383M191 | C63: BSCP | F63: 0.000000% | K63: 0.000000% | L63: 0.00%
A65: Guggenheim Bulletshares 2024 High Yield Corporate Bond ETF | B65: 18383M134 | C65: BSJO | F65: 0.000000% | K65: 0.000000% | L65: 0.00%
A67: Guggenheim Bulletshares 2026 Corporate Bond ETF | B67: 18383M126 | C67: BSCQ | F67: 0.000000% | K67: 0.000000% | L67: 0.00%
A69: Guggenheim China Technology ETF | B69: 18383Q135 | C69: CQQQ | F69: 57.295747% | K69: 0.000000% | L69: 0.00%
A71: Guggenheim S&P Global Water Index ETF | B71: 18383Q507 | C71: CGW | F71: 84.460194% | K71: 0.000000% | L71: 33.28%
A73: Guggenheim S&P High Income Infrastructure ETF | B73: 18383Q721 | C73: GHII | F73: 54.903570% | K73: 0.000000% | L73: 13.55%
A75: Guggenheim Solar ETF | B75: 18383Q739 | C75: TAN | F75: 0.000000% | K75: 0.000000% | L75: 7.77%
A77: Guggenheim China All-Cap ETF | B77: 18385P101 | C77: YAO | F77: 100.000000% | K77: 0.000000% | L77: 0.00%
A79: Guggenheim Total Return Bond ETF | B79: 18385P705 | C79: GTO | F79: 0.000000% | I79: CA, CT, NY | K79: 10.588250% | L79: 0.00% | BQ79: 5.139087% | BR79: 2.636989% | BS79: 2.587028% | BU79: 0.225146% | BX79: 1.899734% | BY79: 1.529482% | CA79: 5.331649%
A81: Guggenheim U.S. Large Cap Optimized Volatility ETF | B81: 18385P804 | C81: OVLC | F81: 0.000000% | K81: 0.000000% | L81: 80.37%
A83: Guggenheim Russell 1000 Equal Weight ETF | B83: 78355W593 | C83: EWRI
A85: Guggenheim S&P 500 Equal Weight ETF | B85: 78355W106 | C85: RSP | F85: 0.000000% | L85: 100.00%
A87: Guggenheim S&P 500 Top 50 ETF | B87: 78355W205 | C87: XLG | F87: 0.000000% | L87: 100.00%
A89: Guggenheim S&P 500 Pure Value ETF | B89: 78355W304 | C89: RPV | F89: 0.000000% | L89: 100.00%
A91: Guggenheim S&P 500 Pure Growth ETF | B91: 78355W403 | C91: RPG | F91: 0.000000% | L91: 94.13%
A93: Guggenheim S&P 100® Equal Weight ETF | B93: 78355W478 | C93: OEW | F93: 0.000000% | L93: 94.63%
A95: Guggenheim S&P 500® Equal Weight Real Estate ETF | B95: 78355W486 | C95: EWRE | F95: 0.000000% | L95: 0.00%
A97: Guggenheim S&P MidCap 400 Pure Value ETF | B97: 78355W502 | C97: RFV | F97: 0.000000% | L97: 100.00%
A99: Guggenheim MSCI Emerging Markets Equal Country Weight ETF | B99: 78355W536 | C99: EWEM | F99: 100.000000% | L99: 3.90%
A101: Guggenheim S&P MidCap 400 Equal Weight ETF | B101: 78355W577 | C101: EWMC | F101: 0.000000% | L101: 94.44%
A103: Guggenheim S&P SmallCap 600 Equal Weight ETF | B103: 78355W585 | C103: EWSC | F103: 0.000000% | L103: 100.00%
A105: Guggenheim S&P MidCap 400 Pure Growth ETF | B105: 78355W601 | C105: RFG | F105: 0.000000% | L105: 100.00%
A107: Guggenheim S&P SmallCap 600 Pure Value ETF | B107: 78355W700 | C107: RZV | F107: 0.000000% | L107: 100.00%
A109: Guggenheim S&P 500 Equal Weight Utilities ETF | B109: 78355W791 | C109: RYU | F109: 0.000000% | L109: 100.00%
A111: Guggenheim S&P SmallCap 600 Pure Growth ETF | B111: 78355W809 | C111: RZG | F111: 0.000000% | L111: 70.90%
A113: Guggenheim S&P 500 Equal Weight Technology ETF | B113: 78355W817 | C113: RYT | F113: 0.000000% | L113: 94.21%
A115: Guggenheim S&P 500 Equal Weight Materials ETF | B115: 78355W825 | C115: RTM | F115: 0.000000% | L115: 100.00%
A117: Guggenheim S&P 500 Equal Weight Industrials ETF | B117: 78355W833 | C117: RGI | F117: 0.000000% | L117: 100.00%
A119: Guggenheim S&P 500 Equal Weight Health Care ETF | B119: 78355W841 | C119: RYH | F119: 0.000000% | L119: 100.00%
A121: Guggenheim S&P 500 Equal Weight Financials ETF | B121: 78355W858 | C121: RYF | F121: 0.000000% | L121: 67.73%
A123: Guggenheim S&P 500 Equal Weight Energy ETF | B123: 78355W866 | C123: RYE | F123: 0.000000% | L123: 100.00%
A125: Guggenheim S&P 500 Equal Weight Consumer Staples ETF | B125: 78355W874 | C125: RHS | F125: 0.000000% | L125: 100.00%
A127: Guggenheim S&P 500 Equal Weight Consumer Discretionary ETF | B127: 78355W882 | C127: RCD | F127: 0.000000% | L127: 100.00%
A129: Guggenheim BRIC ETF | B129: 18383M100 | C129: EEB | F129: 100.000000% | K129: 0.000000% | L129: 0.00%
A131: Guggenheim Insider Sentiment ETF | B131: 18383M209 | C131: NFO | F131: 0.000000% | K131: 0.000000% | L131: 78.20%
A133: Wilshire Micro-Cap ETF | B133: 18383M308 | C133: WMCR | F133: 0.000000% | K133: 0.000000% | L133: 60.68%
A135: Wilshire US REIT ETF | B135: 18383M472 | C135: WREI | F135: 0.000000% | K135: 0.000000% | L135: 0.01%
A137: Guggenheim Multi-Asset Income ETF | B137: 18383M506 | C137: CVY | F137: 0.000000% | K137: 0.000000% | L137: 49.07%
A139: Guggenheim S&P Spin-Off ETF | B139: 18383M605 | C139: CSD | F139: 0.000000% | K139: 0.000000% | L139: 63.73%
A141: Guggenheim Raymond James SB-1 Equity ETF | B141: 18383M613 | C141: RYJ | F141: 0.000000% | K141: 0.000000% | L141: 70.50%
A143: Guggenheim Mid-Cap Core ETF | B143: 18383M720 | C143: CZA | F143: 0.000000% | K143: 0.000000% | L143: 68.61%
A145: Guggenheim Defensive Equity ETF | B145: 18383M878 | C145: DEF | F145: 0.000000% | K145: 0.000000% | L145: 61.82%
A147: Guggenheim Dow Jones Industrial Average Dividend ETF | B147: 18383M175 | C147: DJD | F147: 0.000000% | K147: 0.000000% | L147: 100.00%
A149: Guggenheim Large Cap Optimized Diversification ETF | B149: 18383M167 | C149: OPD | F149: 0.000000% | K149: 0.000000% | L149: 87.60%

Sheet NRA
A2: NRA Layout Report Date: | B2: 2017-02-07 | E2: TARGET DELIVERY DATE: FEBRUARY 7, 2017
A4: This spreadsheet and the accompanying instructions do not constitute, and should not be considered a substitute for, legal advice. The rules governing the proper tax characterization of distributions by mutual funds can be complex. Each fund should consult its own tax advisor regarding the proper tax characterization and reporting of the fund’s distributions.
A8: Please list Securities in Cusip Order (Skip Rows Between Entries)
A9: 1 | B9: 2 | C9: 3 | D9: 4 | E9: 5 | F9: 6 | G9: 7 | H9: 8 | I9: 9 | J9: 10 | K9: 11
G10: NRA Exempt | I10: FIRPTA | J10: FIRPTA | K10: Non-NRA Exempt
A11: Security | G11: Income Div | H11: NRA Exempt | I11: Eligible | J11: Eligible | K11: Non-FIRPTA
A12: Description | C12: Ticker | D12: Reclass | E12: Corrected | F12: Payable | G12: (Attributed to | H12: Short-Term | I12: Short-Term | J12: Long-Term | K12: Long-Term
A13: (Fund Name) | B13: CUSIP | C13: Symbol | D13: ( R ) | E13: ( C ) | F13: Date | G13: Interest Income) | H13: Capital Gain | I13: Capital Gain | J13: Capital Gain | K13: Capital Gain
A14: Guggenheim BRIC ETF | B14: 18383M100 | C14: EEB | F14: 2016-12-30 | G14: 0
A16: Guggenheim Insider Sentiment ETF | B16: 18383M209 | C16: NFO | F16: 2016-12-30 | G16: 0
A18: Wilshire Micro-Cap ETF | B18: 18383M308 | C18: WMCR | F18: 2016-12-30 | G18: 0
A20: Wilshire US REIT ETF | B20: 18383M472 | C20: WREI | F20: 2016-03-31 | G20: 0
A21: Wilshire US REIT ETF | B21: 18383M472 | C21: WREI | F21: 2016-06-30 | G21: 0
A22: Wilshire US REIT ETF | B22: 18383M472 | C22: WREI | F22: 2016-09-30 | G22: 0
A23: Wilshire US REIT ETF | B23: 18383M472 | C23: WREI | F23: 2016-12-30 | G23: 0 | H23: 0.1447 | I23: 0.097875556
A25: Guggenheim Multi-Asset Income ETF | B25: 18383M506 | C25: CVY | F25: 2016-03-31 | G25: 0
A26: Guggenheim Multi-Asset Income ETF | B26: 18383M506 | C26: CVY | F26: 2016-06-30 | G26: 0
A27: Guggenheim Multi-Asset Income ETF | B27: 18383M506 | C27: CVY | F27: 2016-09-30 | G27: 0
A28: Guggenheim Multi-Asset Income ETF | B28: 18383M506 | C28: CVY | F28: 2016-12-30 | G28: 0
A30: Guggenheim S&P Spin-Off ETF | B30: 18383M605 | C30: CSD | F30: 2016-12-30 | G30: 0
A32: Guggenheim Raymond James SB-1 Equity ETF | B32: 18383M613 | C32: RYJ | F32: 2016-12-30 | G32: 0
A34: Guggenheim Mid-Cap Core ETF | B34: 18383M720 | C34: CZA | F34: 2016-12-30 | G34: 0
A36: Guggenheim Defensive Equity ETF | B36: 18383M878 | C36: DEF | F36: 2016-12-30 | G36: 0
A38: Guggenheim Dow Jones Industrial Average Dividend ETF | B38: 18383M175 | C38: DJD | F38: 2016-03-31 | G38: 0
A39: Guggenheim Dow Jones Industrial Average Dividend ETF | B39: 18383M175 | C39: DJD | F39: 2016-06-30 | G39: 0
A40: Guggenheim Dow Jones Industrial Average Dividend ETF | B40: 18383M175 | C40: DJD | F40: 2016-09-30 | G40: 0
A41: Guggenheim Dow Jones Industrial Average Dividend ETF | B41: 18383M175 | C41: DJD | F41: 2016-12-30 | G41: 0
A43: Guggenheim Large Cap Optimized Diversification ETF | B43: 18383M167 | C43: OPD | F43: 2016-12-30 | G43: 0
A45: Guggenheim BulletShares 2022 High Yield Corporate Bond ETF | B45: 18383M217 | C45: BSJM | F45: 2016-02-05 | G45: 0.082066
A46: Guggenheim BulletShares 2022 High Yield Corporate Bond ETF | B46: 18383M217 | C46: BSJM | F46: 2016-03-07 | G46: 0.081729
A47: Guggenheim BulletShares 2022 High Yield Corporate Bond ETF | B47: 18383M217 | C47: BSJM | F47: 2016-04-07 | G47: 0.087958
A48: Guggenheim BulletShares 2022 High Yield Corporate Bond ETF | B48: 18383M217 | C48: BSJM | F48: 2016-05-06 | G48: 0.084338
A49: Guggenheim BulletShares 2022 High Yield Corporate Bond ETF | B49: 18383M217 | C49: BSJM | F49: 2016-06-07 | G49: 0.096459
A50: Guggenheim BulletShares 2022 High Yield Corporate Bond ETF | B50: 18383M217 | C50: BSJM | F50: 2016-07-08 | G50: 0.083089
A51: Guggenheim BulletShares 2022 High Yield Corporate Bond ETF | B51: 18383M217 | C51: BSJM | F51: 2016-08-05 | G51: 0.082762
A52: Guggenheim BulletShares 2022 High Yield Corporate Bond ETF | B52: 18383M217 | C52: BSJM | F52: 2016-09-08 | G52: 0.096978
A53: Guggenheim BulletShares 2022 High Yield Corporate Bond ETF | B53: 18383M217 | C53: BSJM | F53: 2016-10-07 | G53: 0.095262
A54: Guggenheim BulletShares 2022 High Yield Corporate Bond ETF | B54: 18383M217 | C54: BSJM | F54: 2016-11-07 | G54: 0.086602
A55: Guggenheim BulletShares 2022 High Yield Corporate Bond ETF | B55: 18383M217 | C55: BSJM | F55: 2016-12-07 | G55: 0.075082
A56: Guggenheim BulletShares 2022 High Yield Corporate Bond ETF | B56: 18383M217 | C56: BSJM | F56: 2017-01-04 | G56: 0.080475
A58: Guggenheim BulletShares 2021 High Yield Corporate Bond ETF | B58: 18383M225 | C58: BSJL | F58: 2016-02-05 | G58: 0.081481
A59: Guggenheim BulletShares 2021 High Yield Corporate Bond ETF | B59: 18383M225 | C59: BSJL | F59: 2016-03-07 | G59: 0.089342
A60: Guggenheim BulletShares 2021 High Yield Corporate Bond ETF | B60: 18383M225 | C60: BSJL | F60: 2016-04-07 | G60: 0.082955
A61: Guggenheim BulletShares 2021 High Yield Corporate Bond ETF | B61: 18383M225 | C61: BSJL | F61: 2016-05-06 | G61: 0.075503
A62: Guggenheim BulletShares 2021 High Yield Corporate Bond ETF | B62: 18383M225 | C62: BSJL | F62: 2016-06-07 | G62: 0.088523
A63: Guggenheim BulletShares 2021 High Yield Corporate Bond ETF | B63: 18383M225 | C63: BSJL | F63: 2016-07-08 | G63: 0.092404
A64: Guggenheim BulletShares 2021 High Yield Corporate Bond ETF | B64: 18383M225 | C64: BSJL | F64: 2016-08-05 | G64: 0.084454
A65: Guggenheim BulletShares 2021 High Yield Corporate Bond ETF | B65: 18383M225 | C65: BSJL | F65: 2016-09-08 | G65: 0.097704
A66: Guggenheim BulletShares 2021 High Yield Corporate Bond ETF | B66: 18383M225 | C66: BSJL | F66: 2016-10-07 | G66: 0.086762
A67: Guggenheim BulletShares 2021 High Yield Corporate Bond ETF | B67: 18383M225 | C67: BSJL | F67: 2016-11-07 | G67: 0.087275
A68: Guggenheim BulletShares 2021 High Yield Corporate Bond ETF | B68: 18383M225 | C68: BSJL | F68: 2016-12-07 | G68: 0.100097
A69: Guggenheim BulletShares 2021 High Yield Corporate Bond ETF | B69: 18383M225 | C69: BSJL | F69: 2017-01-04 | G69: 0.100695
A71: Guggenheim BulletShares 2020 High Yield Corporate Bond ETF | B71: 18383M365 | C71: BSJK | F71: 2016-02-05 | G71: 0.069648
A72: Guggenheim BulletShares 2020 High Yield Corporate Bond ETF | B72: 18383M365 | C72: BSJK | F72: 2016-03-07 | G72: 0.079247
A73: Guggenheim BulletShares 2020 High Yield Corporate Bond ETF | B73: 18383M365 | C73: BSJK | F73: 2016-04-07 | G73: 0.070913
A74: Guggenheim BulletShares 2020 High Yield Corporate Bond ETF | B74: 18383M365 | C74: BSJK | F74: 2016-05-06 | G74: 0.065704
A75: Guggenheim BulletShares 2020 High Yield Corporate Bond ETF | B75: 18383M365 | C75: BSJK | F75: 2016-06-07 | G75: 0.084902
A76: Guggenheim BulletShares 2020 High Yield Corporate Bond ETF | B76: 18383M365 | C76: BSJK | F76: 2016-07-08 | G76: 0.086022
A77: Guggenheim BulletShares 2020 High Yield Corporate Bond ETF | B77: 18383M365 | C77: BSJK | F77: 2016-08-05 | G77: 0.079153
A78: Guggenheim BulletShares 2020 High Yield Corporate Bond ETF | B78: 18383M365 | C78: BSJK | F78: 2016-09-08 | G78: 0.091337
A79: Guggenheim BulletShares 2020 High Yield Corporate Bond ETF | B79: 18383M365 | C79: BSJK | F79: 2016-10-07 | G79: 0.081688
A80: Guggenheim BulletShares 2020 High Yield Corporate Bond ETF | B80: 18383M365 | C80: BSJK | F80: 2016-11-07 | G80: 0.079562
A81: Guggenheim BulletShares 2020 High Yield Corporate Bond ETF | B81: 18383M365 | C81: BSJK | F81: 2016-12-07 | G81: 0.088066
A82: Guggenheim BulletShares 2020 High Yield Corporate Bond ETF | B82: 18383M365 | C82: BSJK | F82: 2017-01-04 | G82: 0.090519
A84: Guggenheim BulletShares 2019 High Yield Corporate Bond ETF | B84: 18383M373 | C84: BSJJ | F84: 2016-02-05 | G84: 0.073538
A85: Guggenheim BulletShares 2019 High Yield Corporate Bond ETF | B85: 18383M373 | C85: BSJJ | F85: 2016-03-07 | G85: 0.07938
A86: Guggenheim BulletShares 2019 High Yield Corporate Bond ETF | B86: 18383M373 | C86: BSJJ | F86: 2016-04-07 | G86: 0.076186
A87: Guggenheim BulletShares 2019 High Yield Corporate Bond ETF | B87: 18383M373 | C87: BSJJ | F87: 2016-05-06 | G87: 0.073771
A88: Guggenheim BulletShares 2019 High Yield Corporate Bond ETF | B88: 18383M373 | C88: BSJJ | F88: 2016-06-07 | G88: 0.08086
A89: Guggenheim BulletShares 2019 High Yield Corporate Bond ETF | B89: 18383M373 | C89: BSJJ | F89: 2016-07-08 | G89: 0.087511
A90: Guggenheim BulletShares 2019 High Yield Corporate Bond ETF | B90: 18383M373 | C90: BSJJ | F90: 2016-08-05 | G90: 0.080239
A91: Guggenheim BulletShares 2019 High Yield Corporate Bond ETF | B91: 18383M373 | C91: BSJJ | F91: 2016-09-08 | G91: 0.089799
A92: Guggenheim BulletShares 2019 High Yield Corporate Bond ETF | B92: 18383M373 | C92: BSJJ | F92: 2016-10-07 | G92: 0.081056
A93: Guggenheim BulletShares 2019 High Yield Corporate Bond ETF | B93: 18383M373 | C93: BSJJ | F93: 2016-11-07 | G93: 0.072313
A94: Guggenheim BulletShares 2019 High Yield Corporate Bond ETF | B94: 18383M373 | C94: BSJJ | F94: 2016-12-07 | G94: 0.080811
A95: Guggenheim BulletShares 2019 High Yield Corporate Bond ETF | B95: 18383M373 | C95: BSJJ | F95: 2017-01-04 | G95: 0.092414
A97: Guggenheim BulletShares 2018 High Yield Corporte Bond ETF | B97: 18383M381 | C97: BSJI | F97: 2016-02-05 | G97: 0.070275
A98: Guggenheim BulletShares 2018 High Yield Corporte Bond ETF | B98: 18383M381 | C98: BSJI | F98: 2016-03-07 | G98: 0.074903
A99: Guggenheim BulletShares 2018 High Yield Corporte Bond ETF | B99: 18383M381 | C99: BSJI | F99: 2016-04-07 | G99: 0.075906
A100: Guggenheim BulletShares 2018 High Yield Corporte Bond ETF | B100: 18383M381 | C100: BSJI | F100: 2016-05-06 | G100: 0.071817
A101: Guggenheim BulletShares 2018 High Yield Corporte Bond ETF | B101: 18383M381 | C101: BSJI | F101: 2016-06-07 | G101: 0.078837
A102: Guggenheim BulletShares 2018 High Yield Corporte Bond ETF | B102: 18383M381 | C102: BSJI | F102: 2016-07-08 | G102: 0.079134
A103: Guggenheim BulletShares 2018 High Yield Corporte Bond ETF | B103: 18383M381 | C103: BSJI | F103: 2016-08-05 | G103: 0.071566
A104: Guggenheim BulletShares 2018 High Yield Corporte Bond ETF | B104: 18383M381 | C104: BSJI | F104: 2016-09-08 | G104: 0.080368
A105: Guggenheim BulletShares 2018 High Yield Corporte Bond ETF | B105: 18383M381 | C105: BSJI | F105: 2016-10-07 | G105: 0.074116
A106: Guggenheim BulletShares 2018 High Yield Corporte Bond ETF | B106: 18383M381 | C106: BSJI | F106: 2016-11-07 | G106: 0.064574
A107: Guggenheim BulletShares 2018 High Yield Corporte Bond ETF | B107: 18383M381 | C107: BSJI | F107: 2016-12-07 | G107: 0.071978
A108: Guggenheim BulletShares 2018 High Yield Corporte Bond ETF | B108: 18383M381 | C108: BSJI | F108: 2017-01-04 | G108: 0.075926
A110: Guggenheim BulletShares 2017 High Yield Corporate Bond ETF | B110: 18383M399 | C110: BSJH | F110: 2016-02-05 | G110: 0.057209
A111: Guggenheim BulletShares 2017 High Yield Corporate Bond ETF | B111: 18383M399 | C111: BSJH | F111: 2016-03-07 | G111: 0.068056
A112: Guggenheim BulletShares 2017 High Yield Corporate Bond ETF | B112: 18383M399 | C112: BSJH | F112: 2016-04-07 | G112: 0.066851
A113: Guggenheim BulletShares 2017 High Yield Corporate Bond ETF | B113: 18383M399 | C113: BSJH | F113: 2016-05-06 | G113: 0.061709
A114: Guggenheim BulletShares 2017 High Yield Corporate Bond ETF | B114: 18383M399 | C114: BSJH | F114: 2016-06-07 | G114: 0.066289
A115: Guggenheim BulletShares 2017 High Yield Corporate Bond ETF | B115: 18383M399 | C115: BSJH | F115: 2016-07-08 | G115: 0.069999
A116: Guggenheim BulletShares 2017 High Yield Corporate Bond ETF | B116: 18383M399 | C116: BSJH | F116: 2016-08-05 | G116: 0.068077
A117: Guggenheim BulletShares 2017 High Yield Corporate Bond ETF | B117: 18383M399 | C117: BSJH | F117: 2016-09-08 | G117: 0.077952
A118: Guggenheim BulletShares 2017 High Yield Corporate Bond ETF | B118: 18383M399 | C118: BSJH | F118: 2016-10-07 | G118: 0.072796
A119: Guggenheim BulletShares 2017 High Yield Corporate Bond ETF | B119: 18383M399 | C119: BSJH | F119: 2016-11-07 | G119: 0.070524
A120: Guggenheim BulletShares 2017 High Yield Corporate Bond ETF | B120: 18383M399 | C120: BSJH | F120: 2016-12-07 | G120: 0.068164
A121: Guggenheim BulletShares 2017 High Yield Corporate Bond ETF | B121: 18383M399 | C121: BSJH | F121: 2017-01-04 | G121: 0.077864
A123: Guggenheim BulletShares 2024 Corporate Bond ETF | B123: 18383M233 | C123: BSCO | F123: 2016-02-05 | G123: 0.034549
A124: Guggenheim BulletShares 2024 Corporate Bond ETF | B124: 18383M233 | C124: BSCO | F124: 2016-03-07 | G124: 0.036867
A125: Guggenheim BulletShares 2024 Corporate Bond ETF | B125: 18383M233 | C125: BSCO | F125: 2016-04-07 | G125: 0.043051
A126: Guggenheim BulletShares 2024 Corporate Bond ETF | B126: 18383M233 | C126: BSCO | F126: 2016-05-06 | G126: 0.039341
A127: Guggenheim BulletShares 2024 Corporate Bond ETF | B127: 18383M233 | C127: BSCO | F127: 2016-06-07 | G127: 0.041814
A128: Guggenheim BulletShares 2024 Corporate Bond ETF | B128: 18383M233 | C128: BSCO | F128: 2016-07-08 | G128: 0.039823
A129: Guggenheim BulletShares 2024 Corporate Bond ETF | B129: 18383M233 | C129: BSCO | F129: 2016-08-05 | G129: 0.037565
A130: Guggenheim BulletShares 2024 Corporate Bond ETF | B130: 18383M233 | C130: BSCO | F130: 2016-09-08 | G130: 0.041028
A131: Guggenheim BulletShares 2024 Corporate Bond ETF | B131: 18383M233 | C131: BSCO | F131: 2016-10-07 | G131: 0.037339
A132: Guggenheim BulletShares 2024 Corporate Bond ETF | B132: 18383M233 | C132: BSCO | F132: 2016-11-07 | G132: 0.03621
A133: Guggenheim BulletShares 2024 Corporate Bond ETF | B133: 18383M233 | C133: BSCO | F133: 2016-12-07 | G133: 0.040275
A134: Guggenheim BulletShares 2024 Corporate Bond ETF | B134: 18383M233 | C134: BSCO | F134: 2017-01-04 | G134: 0.043211 | H134: 0.023900
A136: Guggenheim BulletShares 2023 Corporate Bond ETF | B136: 18383M241 | C136: BSCN | F136: 2016-02-05 | G136: 0.03841
A137: Guggenheim BulletShares 2023 Corporate Bond ETF | B137: 18383M241 | C137: BSCN | F137: 2016-03-07 | G137: 0.035067
A138: Guggenheim BulletShares 2023 Corporate Bond ETF | B138: 18383M241 | C138: BSCN | F138: 2016-04-07 | G138: 0.03947
A139: Guggenheim BulletShares 2023 Corporate Bond ETF | B139: 18383M241 | C139: BSCN | F139: 2016-05-06 | G139: 0.040286
A140: Guggenheim BulletShares 2023 Corporate Bond ETF | B140: 18383M241 | C140: BSCN | F140: 2016-06-07 | G140: 0.041998
A141: Guggenheim BulletShares 2023 Corporate Bond ETF | B141: 18383M241 | C141: BSCN | F141: 2016-07-08 | G141: 0.040054
A142: Guggenheim BulletShares 2023 Corporate Bond ETF | B142: 18383M241 | C142: BSCN | F142: 2016-08-05 | G142: 0.038382
A143: Guggenheim BulletShares 2023 Corporate Bond ETF | B143: 18383M241 | C143: BSCN | F143: 2016-09-08 | G143: 0.043478
A144: Guggenheim BulletShares 2023 Corporate Bond ETF | B144: 18383M241 | C144: BSCN | F144: 2016-10-07 | G144: 0.040771
A145: Guggenheim BulletShares 2023 Corporate Bond ETF | B145: 18383M241 | C145: BSCN | F145: 2016-11-07 | G145: 0.037426
A146: Guggenheim BulletShares 2023 Corporate Bond ETF | B146: 18383M241 | C146: BSCN | F146: 2016-12-07 | G146: 0.043239
A147: Guggenheim BulletShares 2023 Corporate Bond ETF | B147: 18383M241 | C147: BSCN | F147: 2017-01-04 | G147: 0.045548 | H147: 0.047400
A149: Guggenheim BulletShares 2022 Corporate Bond ETF | B149: 18383M258 | C149: BSCM | F149: 2016-02-05 | G149: 0.032859
A150: Guggenheim BulletShares 2022 Corporate Bond ETF | B150: 18383M258 | C150: BSCM | F150: 2016-03-07 | G150: 0.03995
A151: Guggenheim BulletShares 2022 Corporate Bond ETF | B151: 18383M258 | C151: BSCM | F151: 2016-04-07 | G151: 0.036138
A152: Guggenheim BulletShares 2022 Corporate Bond ETF | B152: 18383M258 | C152: BSCM | F152: 2016-05-06 | G152: 0.033469
A153: Guggenheim BulletShares 2022 Corporate Bond ETF | B153: 18383M258 | C153: BSCM | F153: 2016-06-07 | G153: 0.036976
A154: Guggenheim BulletShares 2022 Corporate Bond ETF | B154: 18383M258 | C154: BSCM | F154: 2016-07-08 | G154: 0.037019
A155: Guggenheim BulletShares 2022 Corporate Bond ETF | B155: 18383M258 | C155: BSCM | F155: 2016-08-05 | G155: 0.035279
A156: Guggenheim BulletShares 2022 Corporate Bond ETF | B156: 18383M258 | C156: BSCM | F156: 2016-09-08 | G156: 0.038284
A157: Guggenheim BulletShares 2022 Corporate Bond ETF | B157: 18383M258 | C157: BSCM | F157: 2016-10-07 | G157: 0.036307
A158: Guggenheim BulletShares 2022 Corporate Bond ETF | B158: 18383M258 | C158: BSCM | F158: 2016-11-07 | G158: 0.032985
A159: Guggenheim BulletShares 2022 Corporate Bond ETF | B159: 18383M258 | C159: BSCM | F159: 2016-12-07 | G159: 0.036228
A160: Guggenheim BulletShares 2022 Corporate Bond ETF | B160: 18383M258 | C160: BSCM | F160: 2017-01-04 | G160: 0.039313 | H160: 0.005700
A162: Guggenheim BulletShares 2021 Corporate Bond ETF | B162: 18383M266 | C162: BSCL | F162: 2016-02-05 | G162: 0.031664
A163: Guggenheim BulletShares 2021 Corporate Bond ETF | B163: 18383M266 | C163: BSCL | F163: 2016-03-07 | G163: 0.036579
A164: Guggenheim BulletShares 2021 Corporate Bond ETF | B164: 18383M266 | C164: BSCL | F164: 2016-04-07 | G164: 0.037384
A165: Guggenheim BulletShares 2021 Corporate Bond ETF | B165: 18383M266 | C165: BSCL | F165: 2016-05-06 | G165: 0.035451
A166: Guggenheim BulletShares 2021 Corporate Bond ETF | B166: 18383M266 | C166: BSCL | F166: 2016-06-07 | G166: 0.038996
A167: Guggenheim BulletShares 2021 Corporate Bond ETF | B167: 18383M266 | C167: BSCL | F167: 2016-07-08 | G167: 0.033389
A168: Guggenheim BulletShares 2021 Corporate Bond ETF | B168: 18383M266 | C168: BSCL | F168: 2016-08-05 | G168: 0.031704
A169: Guggenheim BulletShares 2021 Corporate Bond ETF | B169: 18383M266 | C169: BSCL | F169: 2016-09-08 | G169: 0.035686
A170: Guggenheim BulletShares 2021 Corporate Bond ETF | B170: 18383M266 | C170: BSCL | F170: 2016-10-07 | G170: 0.032087
A171: Guggenheim BulletShares 2021 Corporate Bond ETF | B171: 18383M266 | C171: BSCL | F171: 2016-11-07 | G171: 0.029636
A172: Guggenheim BulletShares 2021 Corporate Bond ETF | B172: 18383M266 | C172: BSCL | F172: 2016-12-07 | G172: 0.0327
A173: Guggenheim BulletShares 2021 Corporate Bond ETF | B173: 18383M266 | C173: BSCL | F173: 2017-01-04 | G173: 0.03492 | H173: 0.008300
A175: Guggenheim BulletShares 2020 Corporate Bond ETF | B175: 18383M514 | C175: BSCK | F175: 2016-02-05 | G175: 0.029963
A176: Guggenheim BulletShares 2020 Corporate Bond ETF | B176: 18383M514 | C176: BSCK | F176: 2016-03-07 | G176: 0.034642
A177: Guggenheim BulletShares 2020 Corporate Bond ETF | B177: 18383M514 | C177: BSCK | F177: 2016-04-07 | G177: 0.034314
A178: Guggenheim BulletShares 2020 Corporate Bond ETF | B178: 18383M514 | C178: BSCK | F178: 2016-05-06 | G178: 0.031851
A179: Guggenheim BulletShares 2020 Corporate Bond ETF | B179: 18383M514 | C179: BSCK | F179: 2016-06-07 | G179: 0.034396
A180: Guggenheim BulletShares 2020 Corporate Bond ETF | B180: 18383M514 | C180: BSCK | F180: 2016-07-08 | G180: 0.030358
A181: Guggenheim BulletShares 2020 Corporate Bond ETF | B181: 18383M514 | C181: BSCK | F181: 2016-08-05 | G181: 0.029163
A182: Guggenheim BulletShares 2020 Corporate Bond ETF | B182: 18383M514 | C182: BSCK | F182: 2016-09-08 | G182: 0.032828
A183: Guggenheim BulletShares 2020 Corporate Bond ETF | B183: 18383M514 | C183: BSCK | F183: 2016-10-07 | G183: 0.02996
A184: Guggenheim BulletShares 2020 Corporate Bond ETF | B184: 18383M514 | C184: BSCK | F184: 2016-11-07 | G184: 0.028207
A185: Guggenheim BulletShares 2020 Corporate Bond ETF | B185: 18383M514 | C185: BSCK | F185: 2016-12-07 | G185: 0.032509
A186: Guggenheim BulletShares 2020 Corporate Bond ETF | B186: 18383M514 | C186: BSCK | F186: 2017-01-04 | G186: 0.037928 | H186: 0.000200
A188: Guggenheim BulletShares 2019 Corporate Bond ETF | B188: 18383M522 | C188: BSCJ | F188: 2016-02-05 | G188: 0.023418
A189: Guggenheim BulletShares 2019 Corporate Bond ETF | B189: 18383M522 | C189: BSCJ | F189: 2016-03-07 | G189: 0.026622
A190: Guggenheim BulletShares 2019 Corporate Bond ETF | B190: 18383M522 | C190: BSCJ | F190: 2016-04-07 | G190: 0.027461
A191: Guggenheim BulletShares 2019 Corporate Bond ETF | B191: 18383M522 | C191: BSCJ | F191: 2016-05-06 | G191: 0.024791
A192: Guggenheim BulletShares 2019 Corporate Bond ETF | B192: 18383M522 | C192: BSCJ | F192: 2016-06-07 | G192: 0.027079
A193: Guggenheim BulletShares 2019 Corporate Bond ETF | B193: 18383M522 | C193: BSCJ | F193: 2016-07-08 | G193: 0.026542
A194: Guggenheim BulletShares 2019 Corporate Bond ETF | B194: 18383M522 | C194: BSCJ | F194: 2016-08-05 | G194: 0.025433
A195: Guggenheim BulletShares 2019 Corporate Bond ETF | B195: 18383M522 | C195: BSCJ | F195: 2016-09-08 | G195: 0.028364
A196: Guggenheim BulletShares 2019 Corporate Bond ETF | B196: 18383M522 | C196: BSCJ | F196: 2016-10-07 | G196: 0.025591
A197: Guggenheim BulletShares 2019 Corporate Bond ETF | B197: 18383M522 | C197: BSCJ | F197: 2016-11-07 | G197: 0.023611
A198: Guggenheim BulletShares 2019 Corporate Bond ETF | B198: 18383M522 | C198: BSCJ | F198: 2016-12-07 | G198: 0.025512
A199: Guggenheim BulletShares 2019 Corporate Bond ETF | B199: 18383M522 | C199: BSCJ | F199: 2017-01-04 | G199: 0.027493
A201: Guggenheim BulletShares 2018 Corporate Bond ETF | B201: 18383M530 | C201: BSCI | F201: 2016-02-05 | G201: 0.019621
A202: Guggenheim BulletShares 2018 Corporate Bond ETF | B202: 18383M530 | C202: BSCI | F202: 2016-03-07 | G202: 0.021902
A203: Guggenheim BulletShares 2018 Corporate Bond ETF | B203: 18383M530 | C203: BSCI | F203: 2016-04-07 | G203: 0.023271
A204: Guggenheim BulletShares 2018 Corporate Bond ETF | B204: 18383M530 | C204: BSCI | F204: 2016-05-06 | G204: 0.02099
A205: Guggenheim BulletShares 2018 Corporate Bond ETF | B205: 18383M530 | C205: BSCI | F205: 2016-06-07 | G205: 0.022055
A206: Guggenheim BulletShares 2018 Corporate Bond ETF | B206: 18383M530 | C206: BSCI | F206: 2016-07-08 | G206: 0.021217
A207: Guggenheim BulletShares 2018 Corporate Bond ETF | B207: 18383M530 | C207: BSCI | F207: 2016-08-05 | G207: 0.020121
A208: Guggenheim BulletShares 2018 Corporate Bond ETF | B208: 18383M530 | C208: BSCI | F208: 2016-09-08 | G208: 0.022548
A209: Guggenheim BulletShares 2018 Corporate Bond ETF | B209: 18383M530 | C209: BSCI | F209: 2016-10-07 | G209: 0.020747
A210: Guggenheim BulletShares 2018 Corporate Bond ETF | B210: 18383M530 | C210: BSCI | F210: 2016-11-07 | G210: 0.019259
A211: Guggenheim BulletShares 2018 Corporate Bond ETF | B211: 18383M530 | C211: BSCI | F211: 2016-12-07 | G211: 0.021217
A212: Guggenheim BulletShares 2018 Corporate Bond ETF | B212: 18383M530 | C212: BSCI | F212: 2017-01-04 | G212: 0.023252
A214: Guggenheim BulletShares 2017 Corporate Bond ETF | B214: 18383M548 | C214: BSCH | F214: 2016-02-05 | G214: 0.018182
A215: Guggenheim BulletShares 2017 Corporate Bond ETF | B215: 18383M548 | C215: BSCH | F215: 2016-03-07 | G215: 0.020307
A216: Guggenheim BulletShares 2017 Corporate Bond ETF | B216: 18383M548 | C216: BSCH | F216: 2016-04-07 | G216: 0.020858
A217: Guggenheim BulletShares 2017 Corporate Bond ETF | B217: 18383M548 | C217: BSCH | F217: 2016-05-06 | G217: 0.019127
A218: Guggenheim BulletShares 2017 Corporate Bond ETF | B218: 18383M548 | C218: BSCH | F218: 2016-06-07 | G218: 0.020386
A219: Guggenheim BulletShares 2017 Corporate Bond ETF | B219: 18383M548 | C219: BSCH | F219: 2016-07-08 | G219: 0.020857
A220: Guggenheim BulletShares 2017 Corporate Bond ETF | B220: 18383M548 | C220: BSCH | F220: 2016-08-05 | G220: 0.020088
A221: Guggenheim BulletShares 2017 Corporate Bond ETF | B221: 18383M548 | C221: BSCH | F221: 2016-09-08 | G221: 0.022909
A222: Guggenheim BulletShares 2017 Corporate Bond ETF | B222: 18383M548 | C222: BSCH | F222: 2016-10-07 | G222: 0.021028
A223: Guggenheim BulletShares 2017 Corporate Bond ETF | B223: 18383M548 | C223: BSCH | F223: 2016-11-07 | G223: 0.019575
A224: Guggenheim BulletShares 2017 Corporate Bond ETF | B224: 18383M548 | C224: BSCH | F224: 2016-12-07 | G224: 0.021541
A225: Guggenheim BulletShares 2017 Corporate Bond ETF | B225: 18383M548 | C225: BSCH | F225: 2017-01-04 | G225: 0.023678 | H225: 0.001500
A227: Guggenheim Enhanced Short Duration ETF | B227: 18383M654 | C227: GSY | F227: 2016-02-05 | G227: 0.016703
A228: Guggenheim Enhanced Short Duration ETF | B228: 18383M654 | C228: GSY | F228: 2016-03-07 | G228: 0.021903
A229: Guggenheim Enhanced Short Duration ETF | B229: 18383M654 | C229: GSY | F229: 2016-04-07 | G229: 0.025913
A230: Guggenheim Enhanced Short Duration ETF | B230: 18383M654 | C230: GSY | F230: 2016-05-06 | G230: 0.024723
... 165 more rows
